Cogmind - Beta 15 @@@ ROGUE MODE // 2025.06.02 @ 18:31:00 Player: alice_fexa Result: Self-destructed Performance ------------- Evolutions (8) 4000 Regions Visited (27) 5400 Robots Destroyed (314) 1570 Value Destroyed (18792) 18792 Prototype IDs (85) 1700 Alien Tech Used (3) 600 Bonus (9655) 9655 TOTAL SCORE: 41717 Bonus ------- High Alert Combat Kills 1309 Follower Combat Kills 1736 Network Hubs Disabled 400 Met Imprinter 300 Met Warlord at Base 500 MAIN.C Attacked Warlord 500 Warlord Defense Kills 288 Built Enhanced Grunts 300 A7 Reached Mainframe 300 Met R17 at Cetus 500 Met R17 at Research 2000 Met Warlord at Research 2000 Invited to Help at Command 2000 Scanned by Researcher 500 Friendly Fire -2978 Cogmind --------- Core Integrity 944/1450 Matter 256/300 Energy 1849/1849 System Corruption 29% Temperature Cool (-200) Movement Walking (213) Ox1 Location -2/Protoforge Parts ------- > --- POWER (3) -------- Quantum-Particle Reactor > --- PROPULSION (6) --- Shield-Antigrav Exoskeleton > --- UTILITY (10) ----- Armored Scrap Engine Advanced Cryofiber Web Huge Storage Unit Advanced Sensor Array Experimental Core Analyzer Advanced Transmission Jammer (fused) Advanced Hacking Suite > --- WEAPON (4) ------- Rapid Thermal Phase Construct/C Plasma Lance > --- INVENTORY (25) --- Improved Quantum Reactor Advanced Cryofiber Web Experimental Heat Sink Experimental Heat Sink Experimental Heat Sink Experimental Coolant Injector Experimental Energy Well (600) Advanced Matter Compressor (400) Advanced Sensor Array Quantum Capacitor Advanced Weapon Cycler Advanced Transmission Jammer Experimental Reaction Control System Advanced Phase Shifter Medium Regenerative Plating Medium Regenerative Plating AEGIS Remote Shield Improved Component Analysis Suite Transdimensional Reconstructor Subatomic Replicator Vortex Shotgun (50) Vortex Shotgun (50) Vortex Rail (40) Micro-nuke Launcher Peak State ------------ > --- POWER ------------ Improved Quantum Reactor Quantum-Particle Reactor > --- PROPULSION ------- Shield-Antigrav Exoskeleton > --- UTILITY ---------- Armored Scrap Engine Experimental Cooling System Huge Storage Unit Spectral Analyzer Advanced Sensor Array Advanced Signal Interpreter Experimental Targeting Computer Advanced Weapon Cycler Advanced Hacking Suite > --- WEAPON ----------- Gamma Rifle Rapid Thermal Phase Construct/C Plasma Lance > --- INVENTORY -------- Improved Quantum Reactor Experimental Coolant Injector Experimental Coolant Injector Experimental Energy Well Advanced Matter Compressor Advanced Sensor Array Experimental Core Analyzer Quantum Capacitor Advanced Transmission Jammer Advanced Transmission Jammer Experimental Reaction Control System Advanced Phase Shifter Centrium Medium Armor Plating Improved Component Analysis Suite Transdimensional Reconstructor Subatomic Replicator Vortex Shotgun Vortex Shotgun Vortex Rail Compact Mass Driver Hypercooled Linear Accelerator Hypercooled Linear Accelerator Micro-nuke Launcher Plasma Lance [Rating: 204] Favorites ----------- Power Constructs Engine Improved Ion Engine Power Core Neutrino Core Reactor Constructs Propulsion Constructs Treads Light Treads Leg Constructs Wheel Subdweller Monowheel Hover Unit Combat Antigrav System Utility Armored Scrap Engine Device Armored Scrap Engine Storage High-capacity Storage Unit Processor Advanced Signal Interpreter Hackware Advanced Hacking Suite Protection Hardened Medium Armor Plating Weapon Constructs Energy Gun Heavy Particle Gun Energy Cannon Heavy Plasma Cannon Ballistic Gun Assault Rifle Ballistic Cannon Constructs Launcher Advanced EMP Blaster Impact Weapon Powered Hammer Piercing Weapon CR-A16's Pointy Stick Build | -11 -10 -10 -10 -8 -8 -8 -6 -6 -6 -6 -6 -5 -5 -5 -5 -5 -4 -4 -4 -4 -4 -4 -3 -3 -2 -2 -2 ------- Run | Yrd Mat Min Sub Mat Sto Rec Fac Low Low Zio Dee Pro Fac Upp Upp War Pro Fac Ext Cet Arc Hub Res Qua Res Tes Frg Slots Evolved 16 | . . . . 4 . . 4 . . . . . 2 . . . . 2 . . . . 2 . 2 . . Power 2 | . . . . . . . . . . . . . 1 . . . . . . . . . . . 1 . . Propulsion 4 | . . . . 2 . . 1 . . . . . . . . . . 1 . . . . . . . . . Utility 8 | . . . . 2 . . 2 . . . . . 1 . . . . 1 . . . . 1 . 1 . . Weapon 2 | . . . . . . . 1 . . . . . . . . . . . . . . . 1 . . . . Parts Attached 179 | 6 5 5 4 16 24 3 8 1 . 1 9 3 9 4 . 11 . 7 10 1 . 1 10 9 16 9 7 Power 23 | 1 . 1 . 1 1 . . . . . . . 1 1 . 4 . 3 4 . . . . . 4 2 . Engine 4 | 1 . 1 . 1 . . . . . . . . . . . 1 . . . . . . . . . . . Core 8 | . . . . . 1 . . . . . . . 1 1 . 1 . 2 2 . . . . . . . . Reactor 11 | . . . . . . . . . . . . . . . . 2 . 1 2 . . . . . 4 2 . Propulsion 24 | 2 . . . 7 11 1 . . . . 1 . . . . . . . 1 . . . . . . 1 . Treads 18 | 2 . . . 5 11 . . . . . . . . . . . . . . . . . . . . . . Leg . | . . . . . . . . . . . . . . . . . . . . . . . . . . . . Wheel 3 | . . . . 2 . 1 . . . . . . . . . . . . . . . . . . . . . Hover 3 | . . . . . . . . . . . 1 . . . . . . . 1 . . . . . . 1 . Flight . | . . . . . . . . . . . . . . . . . . . . . . . . . . . . Utility 86 | 1 4 2 . 6 2 2 5 . . 1 6 3 7 3 . 5 . 4 2 . . 1 6 8 6 6 6 Device 50 | . 1 2 . 4 . 1 3 . . . 3 2 4 3 . 3 . 2 2 . . 1 3 5 4 4 3 Storage 7 | 1 2 . . 1 . . . . . . 1 . . . . . . . . . . . . 1 1 . . Processor 12 | . . . . 1 . . 2 . . . . . 3 . . . . 1 . . . . 3 1 . . 1 Hackware 2 | . . . . . . . . . . . . . . . . . . 1 . . . . . . 1 . . Protection 15 | . 1 . . . 2 1 . . . 1 2 1 . . . 2 . . . . . . . 1 . 2 2 Artifact . | . . . . . . . . . . . . . . . . . . . . . . . . . . . . Weapon 46 | 2 1 2 4 2 10 . 3 1 . . 2 . 1 . . 2 . . 3 1 . . 4 1 6 . 1 Energy Gun 16 | 1 . 1 . . 4 . . . . . 2 . . . . 2 . . 1 1 . . . . 3 . 1 Energy Cannon 5 | . . . 1 . . . . 1 . . . . . . . . . . 1 . . . . . 2 . . Ballistic Gun 9 | 1 . 1 1 . 5 . . . . . . . . . . . . . . . . . 1 . . . . Ballistic Cannon 7 | . . . 2 . 1 . . . . . . . . . . . . . 1 . . . 2 1 . . . Launcher 4 | . 1 . . 2 . . 1 . . . . . . . . . . . . . . . . . . . . Special Weapon . | . . . . . . . . . . . . . . . . . . . . . . . . . . . . Impact Weapon 2 | . . . . . . . 2 . . . . . . . . . . . . . . . . . . . . Slashing Weapon . | . . . . . . . . . . . . . . . . . . . . . . . . . . . . Piercing Weapon 3 | . . . . . . . . . . . . . 1 . . . . . . . . . 1 . 1 . . Special Melee Weapon . | . . . . . . . . . . . . . . . . . . . . . . . . . . . . Unidentified Prototypes 43 | . . . . 1 5 1 2 . . . 7 . . . . 8 . . 1 . . 1 3 7 . 4 3 Corrupted Parts 3 | . . . . . . . . . . . . 2 . . . . . . . . . . . . . . 1 System Corruption 16 | . . . . . . . . . . . . 15 . . . . . . . . . . . . . . 1 Parts Lost 22 | . . . . 2 5 . . . . . . 1 . . . . . . . . . . . . 6 3 5 Power 2 | . . . . . 1 . . . . . . . . . . . . . . . . . . . 1 . . Propulsion 3 | . . . . . 1 . . . . . . . . . . . . . . . . . . . 1 . 1 Utility 10 | . . . . 1 1 . . . . . . . . . . . . . . . . . . . 3 2 3 Weapon 7 | . . . . 1 2 . . . . . . 1 . . . . . . . . . . . . 1 1 1 Highest Loss Streak 4 | . . . . 2 4 . . . . . . 1 . . . . . . . . . . . . 3 2 2 To Critical Strikes 2 | . . . . . . . . . . . . . . . . . . . . . . . . . 1 . 1 Average Backups 19 | 2 9 14 14 15 19 19 19 19 19 19 19 19 19 19 18 19 20 19 19 19 19 19 18 18 22 23 22 Power . | . 1 1 1 1 . . . . . . . . . 1 1 . . . . 1 1 1 . 1 . 1 1 Propulsion . | . 1 2 2 . 1 . . . . . . . . . . . . . . . . . . . . . . Utility 9 | . 1 3 3 4 4 5 7 8 9 9 10 11 12 11 12 11 12 10 11 11 11 11 10 10 12 13 15 Weapon 8 | . 5 8 8 9 12 13 12 11 10 10 9 8 7 7 5 8 8 8 7 7 7 7 7 6 7 6 4 Tool/Special . | . . . . . . . . . . . . . . . . . . . . . . . . . . . . Unused Backups 126 | . 2 7 7 5 7 5 5 . . 2 5 1 14 2 1 7 . 4 . . . . 4 7 19 3 19 Power 8 | . . 1 . 1 . 1 . . . . . . . 1 . 1 . . . . . . 1 . 1 . 1 Propulsion 6 | . 1 . . 1 . 1 . . . . . . . . . . . . . . . . . . 3 . . Utility 56 | . 1 1 2 1 2 1 1 . . 1 3 . 8 1 . 4 . 2 . . . . 1 3 11 1 12 Weapon 54 | . . 5 5 2 5 2 4 . . 1 2 1 6 . 1 2 . 2 . . . . 2 4 4 2 4 Tool/Special 2 | . . . . . . . . . . . . . . . . . . . . . . . . . . . 2 Average Slot Usage (%) 67 | . 97 100 100 96 99 79 59 59 60 60 59 60 63 64 64 63 58 61 62 63 61 62 59 59 60 58 55 Engine 2 | . 14 14 14 9 2 . . . . . 4 6 5 5 5 7 5 4 . . . . . . . . . Core 2 | . . . . . 6 8 6 6 6 6 1 . 4 5 5 1 . 1 6 . . . . . . . . Reactor 2 | . . . . . . . . . . . . . . . . 1 . 2 2 10 8 10 6 4 7 7 4 Treads 8 | . 28 28 28 29 35 19 5 6 6 6 6 6 5 5 5 5 5 . . . . . . 2 3 1 2 Device 13 | . 5 14 14 21 18 15 13 13 13 12 12 13 11 11 10 10 10 10 9 10 10 9 13 12 16 16 20 Storage 6 | . 14 14 14 9 9 9 6 6 6 6 6 6 5 5 5 5 5 5 5 5 5 5 4 4 4 4 4 Processor 11 | . . . . 4 2 . 12 13 13 13 13 13 17 17 17 17 17 15 15 15 15 15 14 14 13 12 7 Hackware 2 | . . . . . . . . . . . . . . . . . . 4 5 5 5 5 4 4 3 4 4 Protection 1 | . 5 . . . 6 6 . . . . . . . . . . . . . . . . . . . . . Energy Gun 2 | . 13 12 6 7 13 9 . . . . . . . . . . . . . . . . . . . . . Ballistic Gun 1 | . 14 14 14 9 4 . . . . . . . . . . . . . . . . . . . . . . Ballistic Cannon 3 | . . . 7 1 . 3 6 6 6 6 6 6 5 5 5 5 5 5 5 5 5 5 4 2 2 4 4 Piercing Weapon 3 | . . . . . . . . . . . . . 4 5 5 4 5 5 4 5 5 5 4 6 5 3 3 Peak Build Rating 204 | 6 8 16 17 28 32 47 69 70 70 70 84 86 97 97 98 103 96 121 136 134 133 136 154 173 204 201 190 Average Rating 108 | 4 7 12 16 25 28 36 64 69 69 69 77 83 92 95 96 96 93 115 124 131 130 130 142 160 191 188 183 On Entrance 85 | . 6 8 16 16 28 29 45 69 69 70 69 82 84 94 97 97 96 93 117 131 132 130 130 153 170 188 185 Naked Turns . | . . . . . . . . . . . . . . . . . . . . . . . . . . . . Heaviest Build 173 | 14 30 36 39 58 58 66 60 66 66 69 69 64 69 73 80 81 65 79 78 74 78 78 90 108 160 161 173 Greatest Support 228 | 40 40 40 40 83 83 80 88 88 88 88 148 148 148 148 148 148 148 148 137 80 80 80 109 129 228 189 82 Greatest Overweight (x) 4 | 4 . . . 3 . 2 . . . . . . . . . . . . 1 . . . 1 1 . 2 2 Average Overweight (x) . | . . . . 1 . . . . . . . . . . . . . . . . . . . . . 1 1 Largest Inventory Capacity 25 | 8 15 15 15 20 20 20 20 20 20 20 20 20 20 20 20 20 20 20 20 20 20 20 20 20 25 25 25 Average Capacity 20 | 7 11 15 15 16 20 20 20 20 20 20 20 20 20 20 20 20 20 20 20 20 20 20 20 20 24 25 25 Most Carried 25 | 3 15 15 15 20 20 20 20 20 20 20 20 20 20 20 20 20 20 20 20 20 20 20 20 20 25 25 25 Average Carried 19 | 2 9 14 14 15 19 19 19 19 19 19 19 19 19 19 19 19 20 19 19 20 20 20 19 19 23 24 23 Final Capacity 25 | 8 15 15 15 20 20 20 20 20 20 20 20 20 20 20 20 20 20 20 20 20 20 20 20 20 25 25 25 Final Carried 25 | 3 15 15 15 20 20 20 20 19 20 20 20 20 20 20 20 20 20 20 20 20 20 20 20 20 24 23 25 Scrap Engine Consumption 230 | . . . . . . 30 20 3 2 2 4 1 5 2 . 11 . 4 13 7 2 . 10 26 45 22 21 Constructs Created 3 | . . . . . . 3 . . . . . . . . . . . . . . . . . . . . . Constructs Modified 102 | . . . . . . 6 7 . . . 3 . 1 . . . . 9 12 . 3 . 4 17 19 12 9 Class Distribution -------------------- 67% | Construct 9% | Scavenger-Mutant 8% | Scavenger-Construct 6% | Mutant 4% | Commander-Construct Dominant Class ---------------- Mutant | -10/Materials Scavenger-Mutant | -10/Mines Mutant | -10/Subcaves Scavenger-Mutant | -8/Materials Scavenger-Mutant | -8/Storage Commander-Mutant | -8/Recycling Construct | -6/Factory Construct | -6/Lower Caves Construct | -6/Lower Caves Construct | -6/Zion Construct | -6/Deep Caves Construct | -5/Proximity Caves Construct | -5/Factory Construct | -5/Upper Caves Construct | -5/Upper Caves Construct | -5/Warlord Construct | -4/Proximity Caves Construct | -4/Factory Construct | -4/Extension Commander-Construct | -4/Cetus Commander-Construct | -4/Archives Commander-Construct | -4/Hub_04(d) Construct | -3/Research Construct | -3/Quarantine Construct | -2/Research Construct | -2/Testing Scavenger-Construct | -2/Protoforge Resources | -11 -10 -10 -10 -8 -8 -8 -6 -6 -6 -6 -6 -5 -5 -5 -5 -5 -4 -4 -4 -4 -4 -4 -3 -3 -2 -2 -2 ----------- Run | Yrd Mat Min Sub Mat Sto Rec Fac Low Low Zio Dee Pro Fac Upp Upp War Pro Fac Ext Cet Arc Hub Res Qua Res Tes Frg Matter Collected 10145 | 240 239 346 121 334 558 153 225 92 55 62 273 232 591 174 54 365 11 258 367 60 31 115 533 2319 1322 481 534 Remotely . | . . . . . . . . . . . . . . . . . . . . . . . . . . . . Salvage Created 17433 | . 446 176 69 928 1246 336 488 223 74 336 484 35 545 127 160 193 . 493 595 362 235 489 1359 1453 2334 1292 2955 Parts 794 | . 42 9 2 53 57 9 11 7 7 21 23 2 32 10 4 9 . 19 19 16 16 14 47 74 82 46 163 Haulers Intercepted 20 | . 2 . . 1 5 . 2 . . . . . . . . . . . 1 . . 1 4 1 1 2 . Recyclers Shooed 5 | . . . . . 2 . . . . . . . 2 . . . . . . . . . . . 1 . . Parts Field Recycled . | . . . . . . . . . . . . . . . . . . . . . . . . . . . . Retrieved Matter . | . . . . . . . . . . . . . . . . . . . . . . . . . . . . Parts Self-Destructed 12 | . . . . . . . . 1 2 3 . . . 3 3 . . . . . . . . . . . . Prevented 8 | . . . . . . . . . . . . . . . 8 . . . . . . . . . . . . Kills | -11 -10 -10 -10 -8 -8 -8 -6 -6 -6 -6 -6 -5 -5 -5 -5 -5 -4 -4 -4 -4 -4 -4 -3 -3 -2 -2 -2 ------- Run | Yrd Mat Min Sub Mat Sto Rec Fac Low Low Zio Dee Pro Fac Upp Upp War Pro Fac Ext Cet Arc Hub Res Qua Res Tes Frg Combat Hostiles Destroyed 230 | . 11 7 2 18 16 5 4 4 2 5 12 2 8 1 . 3 . 7 3 5 2 3 14 18 33 10 35 Melee 1 | . . . . . . . . . . . . . . . . . . 1 . . . . . . . . . Guns 46 | . 10 1 1 16 13 5 . . . . . . . . . . . . . . . . . . . . . Cannons 148 | . . . 1 . . . 4 . 2 1 1 . 8 1 . 3 . 6 3 5 2 3 14 18 32 10 34 AOE 30 | . 1 6 . 2 3 . . 4 . 2 10 2 . . . . . . . . . . . . . . . Classes Destroyed 32 | . 6 2 1 4 1 2 1 1 1 1 2 1 . . 1 . . . . . . . 2 . 4 1 1 Worker 8 | . 1 . . . 2 . . . . . . . 1 . . . . . . . . . . . . 2 2 Builder 3 | . . . . 1 . . . . . . . . . . . . . . 1 . . . . . . 1 . Tunneler 2 | . 1 1 . . . . . . . . . . . . . . . . . . . . . . . . . Hauler 20 | . 2 . . 1 5 . 2 . . . . . . . . . . . 1 . . 1 4 1 1 2 . Recycler 11 | . . 1 . . 3 . 1 . . . . . 1 . . . . 1 2 . . . . 1 1 . . Minesweeper 1 | . . . . . . . . . . . . . . . 1 . . . . . . . . . . . . Mechanic 4 | . . . . 2 1 . . . . . . . . . . . . . . . . . . . . 1 . Operator 8 | . . . . 1 . . . . . . . . 1 . . . . 1 . . 2 1 . . . 1 1 Watcher 25 | . 3 . . 3 2 . . . . . . . . . . . . 2 1 2 . 2 1 3 2 1 3 Swarmer 30 | . 9 6 . 2 . . . 4 . . . . . . . . . 4 . . . . 1 . 4 . . Saboteur 1 | . . . . . . . . . . . . . . . . . . . . . . . . . 1 . . Grunt 42 | . 2 . . 12 7 . 2 . . . . . . 1 . 1 . . 1 . . 2 4 5 3 2 . Brawler 2 | . . . . . 2 . . . . . . . . . . . . . . . . . . . . . . Duelist 1 | . . . . 1 . . . . . . . . . . . . . . . . . . . . . . . Protector 3 | . . . . . . 1 . . . . . . . . . 2 . . . . . . . . . . . Researcher 2 | . . . . . . . . . . . . . . . . . . . . . . . . . . 2 . Sentry 23 | . . 1 . 3 7 2 . . . . . . . . . . . 1 1 . 2 1 1 . 1 . 3 Demolisher 5 | . . . . . . 2 . . . . . . . . . . . . . . . . . . 3 . . Specialist 3 | . . . . . . . . . . . . . . . . . . . . . . . . . . . 3 Hunter 19 | . . . . . . . . . . . . 2 . . . . . . 1 . . . 3 2 4 2 5 Programmer 33 | . . . . . . . 2 . 1 . . . 8 . . . . 2 . . . . . . . 6 14 Behemoth 1 | . . . . . . . . . . . . . . . . . . . . . . . . . 1 . . Cetus Guard 5 | . . . . . . . . . . . . . . . . . . . . 5 . . . . . . . Quarantine Guard 11 | . . . . . . . . . . . . . . . . . . . . . . . . 11 . . . Enhanced Grunt 1 | . . . . . . . . . . . . . . . . . . . . . . 1 . . . . . Hotshot 10 | . . . . . . . . . . . . . . . . . . . . . . . . . . . 10 Striker 18 | . . . . . . . . . . . . . . . . . . . . . . . 5 . 13 . . Executioner 2 | . . . . . . . . . . . . . . . . . . . . . . . . . 2 . . Subdweller 2 | . . . 2 . . . . . . . . . . . . . . . . . . . . . . . . Z-Light 6 | . . . . . . . . . . . 6 . . . . . . . . . . . . . . . . Decomposer 1 | . . . . . . . . . . . . 1 . . . . . . . . . . . . . . . Packrat 1 | . . . . . . . . 1 . . . . . . . . . . . . . . . . . . . Samaritan 6 | . . . . . . . . 2 1 . . . . 2 1 . . . . . . . . . . . . Thief 1 | . . . . . . . . . 1 . . . . . . . . . . . . . . . . . . Assembled 6 | . . . . . . . . . . . 6 . . . . . . . . . . . . . . . . Wasp 1 | . . . . . . . . . . . . . . . . . . . . . . . . . 1 . . Savage 1 | . . . . . . . . . . . . . . . 1 . . . . . . . . . . . . Fireman 3 | . . . . . . . . . . . . . . . . . . . . . . . . . 3 . . Mutant 4 | . . . . . . . . . . 4 . . . . . . . . . . . . . . . . . Revision 1 | . . . . . . . . . . . . . . . . . . . . . . . 1 . . . . Best Kill Streak 11 | . 6 4 1 6 9 3 2 5 1 5 6 2 4 1 1 2 . 4 2 4 2 5 3 3 6 4 11 Combat Bots Only 11 | . 3 3 1 5 7 3 2 4 1 5 6 2 4 1 . 2 . 4 1 3 1 3 3 2 6 3 11 Max Kills in Single Turn 4 | . 2 2 1 2 2 2 1 4 1 1 2 2 1 1 1 1 . 1 1 1 1 1 1 1 2 2 1 Gunslinging 1 | . . . . . . 1 . . . . . . . . . . . . . . . . . . . . . Exploded 4 | . 1 2 . 1 2 . . 4 . 1 2 2 . . . . . . . . . . . . . . . Melee 1 | . . . . . . . . . . . . . . . . . . 1 . . . . . . . . . Uniques/NPCs Destroyed 1 | . . . . . . . . . . 1 . . . . . . . . . . . . . . . . . Imprinter (-6/Zion) Combat | -11 -10 -10 -10 -8 -8 -8 -6 -6 -6 -6 -6 -5 -5 -5 -5 -5 -4 -4 -4 -4 -4 -4 -3 -3 -2 -2 -2 -------- Run | Yrd Mat Min Sub Mat Sto Rec Fac Low Low Zio Dee Pro Fac Upp Upp War Pro Fac Ext Cet Arc Hub Res Qua Res Tes Frg Hostile Shots Fired 1200 | . 26 13 1 86 82 9 14 7 11 60 17 15 30 16 26 36 . 42 11 6 10 2 18 121 129 207 205 Missed 412 | . 7 4 . 32 23 3 1 4 1 24 7 5 7 6 8 9 . 13 3 1 7 1 10 59 40 67 70 Hits 788 | . 19 9 1 54 59 6 13 3 10 36 10 10 23 10 18 27 . 29 8 5 3 1 8 62 89 140 135 Melee 18 | . . . . 2 . . . . 1 . . . . . . 3 . . . . . . 2 . 10 . . Projectile 770 | . 19 9 1 52 59 6 13 3 9 36 10 10 23 10 18 24 . 29 8 5 3 1 6 62 79 140 135 AOE 7 | . . . . . . 5 . . . . . . . . . . . . . . . . . . 2 . . Critical Strikes 49 | . . . . 1 3 . 1 . . . . . 1 . . 1 . . 1 1 . . . 10 6 9 15 Part Disruptions 1 | . . . . . . . . . . . . . 1 . . . . . . . . . . . . . . Damage Taken 17837 | . 149 71 18 868 896 225 201 41 150 500 261 179 607 130 273 546 . 484 277 99 75 120 402 2083 2617 3298 3267 Core 1097 | . 22 18 18 146 68 . . 28 . 76 10 . . . 43 37 . 17 . 30 . . . 78 88 211 207 Absorbed by Shields 108 | . . . . . . . . . . . . . . . . . . . 23 66 . . . . . . 19 Reduced by Siege Mode 149 | . . . . . . . . . . . . . . . . . . . . . . . . 116 33 . . Redirected to Shielding 6 | . 2 . . . 4 . . . . . . . . . . . . . . . . . . . . . . Regen/Repaired (Parts) 9415 | . . . . 103 141 . 14 . . . 304 . 115 . . 143 . 1560 659 . 198 . 214 2150 387 1138 2289 Core Remaining (%) 83 | 100 . . 76 . . 61 . . . . . 86 . . . . 92 . . . . 95 . 76 . . . Volleys Fired 1004 | . 33 12 17 62 95 29 15 19 13 13 31 3 44 2 4 24 1 18 12 20 17 16 64 121 161 52 106 Largest 2 | . 2 2 2 2 2 2 1 1 1 1 1 1 1 1 1 1 1 1 1 1 1 1 1 1 1 1 1 Hottest 163 | . 60 60 105 105 110 148 148 148 148 148 148 148 148 148 148 148 148 148 148 85 85 85 85 85 126 126 163 Shots Fired 1173 | . 63 17 22 120 162 38 15 19 14 13 31 3 44 2 4 24 1 18 12 20 17 16 63 118 161 52 104 Gun 394 | . 61 10 16 116 158 33 . . . . . . . . . . . . . . . . . . . . . Cannon 737 | . . . 6 . 1 5 15 18 14 9 14 1 44 2 4 24 1 18 12 20 17 16 63 116 161 52 104 Launcher 42 | . 2 7 . 4 3 . . 1 . 4 17 2 . . . . . . . . . . . 2 . . . Special . | . . . . . . . . . . . . . . . . . . . . . . . . . . . . Kinetic 782 | . 30 5 18 58 69 19 15 2 9 8 14 1 44 2 4 24 1 18 12 . 2 16 63 109 90 52 97 Thermal 294 | . . . 4 58 90 19 . 16 5 1 . . . . . . . . . 20 15 . . . 59 . 7 Explosive 21 | . 2 7 . 4 3 . . 1 . . . 2 . . . . . . . . . . . 2 . . . Electromagnetic 69 | . 31 5 . . . . . . . 4 17 . . . . . . . . . . . . . 12 . . Phasic 7 | . . . . . . . . . . . . . . . . . . . . . . . . 7 . . . Robot Hit Streak 29 | . 5 4 5 20 21 14 8 7 9 2 3 2 8 2 5 10 . 11 5 6 8 4 9 29 15 8 10 Robot Miss Streak 8 | . 3 1 1 4 2 1 1 2 2 3 4 8 3 . 1 2 . 2 1 2 1 2 3 3 2 3 3 Penetration Max 1 | . . . . . . . . . . . . . . . . . . . . . 1 . . . 1 1 . Secondary Targets 5 | . . . . 3 1 1 . . . . . . . . . . . . . . . . . . . . . Max Gunslinging Chain 1 | . . . . 1 1 1 . . . . . . . . . . . . . . . . . . . . . Shots Hit Robots 773 | . 36 8 7 79 96 30 16 7 8 3 7 3 29 4 9 20 . 14 17 16 13 15 44 75 120 33 64 Core Hits 386 | . 21 12 4 41 48 9 4 10 3 11 19 9 7 3 3 3 . 9 9 9 5 6 22 29 40 17 33 Critical Kills 27 | . . . 1 . 1 . . . . . . . . . . . . . . 3 2 1 3 7 9 . . Critical Parts Destroyed 24 | . . . . . . . 3 . . . . . . . . . . . . . 1 1 4 14 1 . . Critical Strikes 76 | . 1 . 1 2 7 2 3 . . . . . 1 . . . . 1 . 3 4 4 9 22 14 2 . Burn 10 | . . . . 2 6 2 . . . . . . . . . . . . . . . . . . . . . Destroy 52 | . . . 1 . 1 . . . . . . . . . . . . . . 3 4 2 9 22 10 . . Blast 7 | . . . . . . . . . . . . . 1 . . . . . . . . . . . 4 2 . Corrupt 1 | . 1 . . . . . . . . . . . . . . . . . . . . . . . . . . Smash 3 | . . . . . . . 3 . . . . . . . . . . . . . . . . . . . . Impale 3 | . . . . . . . . . . . . . . . . . . 1 . . . 2 . . . . . Melee Attacks 188 | . . . . . . . 10 . . . . . 43 12 7 6 9 21 11 . . 4 13 25 9 14 4 Impact 10 | . . . . . . . 10 . . . . . . . . . . . . . . . . . . . . Slashing . | . . . . . . . . . . . . . . . . . . . . . . . . . . . . Piercing 178 | . . . . . . . . . . . . . 43 12 7 6 9 21 11 . . 4 13 25 9 14 4 Sneak Attacks 30 | . . . . . . . 3 . . . . . 4 3 5 . . 1 4 . . 1 4 1 1 2 1 Combat Hostiles . | . . . . . . . . . . . . . . . . . . . . . . . . . . . . Follow-up Attacks 1 | . . . . . . . . . . . . . . . . . . . . . . . . 1 . . . Damage Inflicted 57020 | . 567 498 148 2037 2165 579 1049 546 483 607 776 444 2437 299 601 1529 . 1074 1155 1404 1258 1241 4031 7724 11057 3770 9541 Guns 4613 | . 492 81 107 1674 1791 468 . . . . . . . . . . . . . . . . . . . . . Cannons 46541 | . . . 41 . . 111 742 309 483 141 150 53 2076 83 218 1529 . 972 749 1404 1258 1054 3663 7617 10804 3622 9462 Explosions 2972 | . 75 417 . 363 374 . . 237 . 466 626 391 . . . . . . . . . . 23 . . . . Melee 2894 | . . . . . . . 307 . . . . . 361 216 383 . . 102 406 . . 187 345 107 253 148 79 Ramming . | . . . . . . . . . . . . . . . . . . . . . . . . . . . . Kinetic 39824 | . 273 35 107 718 585 337 742 151 450 141 150 53 2076 83 218 1529 . 972 749 . 190 1054 3663 7214 5732 3622 8980 Thermal 10297 | . . 45 41 956 1206 242 . 158 33 84 . . . . . . . . . 1404 1068 . . . 4578 . 482 Explosive 1812 | . 75 372 . 363 374 . . 237 . . . 391 . . . . . . . . . . . . . . . Electromagnetic 1790 | . 219 46 . . . . . . . 382 626 . . . . . . . . . . . 23 . 494 . . Impact 307 | . . . . . . . 307 . . . . . . . . . . . . . . . . . . . . Slashing . | . . . . . . . . . . . . . . . . . . . . . . . . . . . . Piercing 2587 | . . . . . . . . . . . . . 361 216 383 . . 102 406 . . 187 345 107 253 148 79 Phasic 403 | . . . . . . . . . . . . . . . . . . . . . . . . 403 . . . Highest Corruption 28 | . . . . . . 1 3 3 5 5 . 15 3 3 . . . 5 5 . . . 10 10 . 8 28 Average Corruption 6 | . . . . . . 1 2 3 4 5 . 10 2 2 . . . 3 4 . . . 9 10 . 2 12 Corruption Purged 10 | . . . . . . . . . . . . . 1 3 . . . . 5 . . . . . . 1 . Corruption Blocked . | . . . . . . . . . . . . . . . . . . . . . . . . . . . . Effects 355 | . . . . . . 13 13 12 6 1 . . 22 3 . . . 6 24 . . . 47 143 . 12 53 Message Errors 89 | . . . . . . 2 2 2 1 1 . . 5 1 . . . 2 6 . . . 8 37 . 6 16 Matter Fused 96 | . . . . . . 6 1 3 2 . . . 7 . . . . 1 9 . . . 8 41 . 4 14 Heat Flow Errors 48 | . . . . . . 1 3 3 . . . . 3 . . . . 2 . . . . 10 19 . . 7 Energy Discharges 47 | . . . . . . 2 2 3 1 . . . 4 1 . . . 1 4 . . . 9 16 . . 4 Parts Rejected 2 | . . . . . . 1 . . . . . . . . . . . . . . . . . . . . 1 Parts Fused 5 | . . . . . . 1 2 . 1 . . . . . . . . . . . . . . . . . 1 Data Loss (minor) 38 | . . . . . . . 2 1 . . . . 1 1 . . . . 4 . . . 5 17 . 1 6 Data Loss (major) 14 | . . . . . . . 1 . . . . . 2 . . . . . . . . . 3 6 . 1 1 Misfires 1 | . . . . . . . . . 1 . . . . . . . . . . . . . . . . . . Alerts 6 | . . . . . . . . . . . . . . . . . . . 1 . . . 2 2 . . 1 Misdirections 3 | . . . . . . . . . . . . . . . . . . . . . . . 1 2 . . . Weapon Failures 6 | . . . . . . . . . . . . . . . . . . . . . . . 1 3 . . 2 Overload Shots . | . . . . . . . . . . . . . . . . . . . . . . . . . . . . Overflow Damage 6905 | . . 10 . . . 14 351 168 140 46 55 35 690 50 97 208 . 178 121 46 61 99 316 520 945 651 2104 Projectiles 6193 | . . . . . . 14 104 168 140 46 43 35 599 . 7 208 . 178 88 46 61 61 308 520 851 651 2065 Explosions 25 | . . 10 . . . . . . . . 12 . . . . . . . . . . . 3 . . . . Melee 687 | . . . . . . . 247 . . . . . 91 50 90 . . . 33 . . 38 5 . 94 . 39 Knockbacks 138 | . . . . . . 3 6 . 3 1 . . 10 . . 11 . 3 2 . 1 3 17 5 34 15 24 Impact 1 | . . . . . . . 1 . . . . . . . . . . . . . . . . . . . . Kinetic 125 | . . . . . . 2 5 . 3 1 . . 9 . . 7 . 3 2 . 1 3 17 5 33 13 21 Secondary 12 | . . . . . . 1 . . . . . . 1 . . 4 . . . . . . . . 1 2 3 Self-Inflicted Damage 54 | . . . . 14 13 . . . . . . . . . . . . . . . . . . 27 . . . Shots 4 | . . . . 1 1 . . . . . . . . . . . . . . . . . . 2 . . . Rammed . | . . . . . . . . . . . . . . . . . . . . . . . . . . . . Targets Rammed . | . . . . . . . . . . . . . . . . . . . . . . . . . . . . Kicked . | . . . . . . . . . . . . . . . . . . . . . . . . . . . . Crushed . | . . . . . . . . . . . . . . . . . . . . . . . . . . . . Highest Temperature 395 | . . . . 4 25 167 212 237 209 287 240 119 340 124 129 179 116 395 194 74 74 187 272 310 334 345 187 Average Temperature 95 | . . . . 4 8 66 110 67 83 134 90 68 120 60 63 79 61 138 74 42 38 66 86 86 132 118 78 Received Heat Transfer 1863 | . . . . 432 459 . 18 . . 45 101 . . 9 66 108 . 18 40 . 9 12 9 96 9 99 333 Effects 12 | . . . . . . . . . . . 1 . 4 . . . . . . . . . 2 4 1 . . Energy Bleed 4 | . . . . . . . . . . . 1 . 1 . . . . . . . . . . 2 . . . Interference 8 | . . . . . . . . . . . . . 3 . . . . . . . . . 2 2 1 . . Siege Activations 16 | . . . . . . . . . . . . . . . . . . . . . . . . 14 2 . . Total Turns 226 | . . . . . . . . . . . . . . . . . . . . . . . . 195 31 . . Longest Duration 37 | . . . . . . . . . . . . . . . . . . . . . . . . 37 24 . . Martial Activations . | . . . . . . . . . . . . . . . . . . . . . . . . . . . . Shielding Activations . | . . . . . . . . . . . . . . . . . . . . . . . . . . . . Robots Disrupted 1 | . . . . . . . . . . . 1 . . . . . . . . . . . . . . . . Combat Hostiles 1 | . . . . . . . . . . . 1 . . . . . . . . . . . . . . . . Robots Corrupted 7 | . . . . . . . 2 . . 2 1 . . . . . . . . . . . . . 1 . 1 Combat Hostiles 5 | . . . . . . . . . . 2 1 . . . . . . . . . . . . . 1 . 1 Parts Fried 23 | . 1 . . . . . 2 . . 8 9 . . . . . . . . . . . . . 2 . 1 Impact Corruptions 8 | . . . . . . . 4 . . . . . . . . 1 . . . . . . . . . 1 2 Robots Melted . | . . . . . . . . . . . . . . . . . . . . . . . . . . . . Combat Hostiles . | . . . . . . . . . . . . . . . . . . . . . . . . . . . . Parts Melted 6 | . . . . 1 . . 1 . 1 . . . . . . . . . . . . . . . 2 . 1 Heat Transferred 8506 | . . . 74 1813 2701 591 . 250 50 50 . . . . . . . . . 666 518 . . . 1645 . 148 Parts Sabotaged 3 | . . . . . . . . . . . . . . . . 3 . . . . . . . . . . . Parts Stolen . | . . . . . . . . . . . . . . . . . . . . . . . . . . . . Parts Stripped . | . . . . . . . . . . . . . . . . . . . . . . . . . . . . Power Chain Reactions 3 | . . 1 . . . . . . . 1 1 . . . . . . . . . . . . . . . . Alert | -11 -10 -10 -10 -8 -8 -8 -6 -6 -6 -6 -6 -5 -5 -5 -5 -5 -4 -4 -4 -4 -4 -4 -3 -3 -2 -2 -2 ------- Run | Yrd Mat Min Sub Mat Sto Rec Fac Low Low Zio Dee Pro Fac Upp Upp War Pro Fac Ext Cet Arc Hub Res Qua Res Tes Frg Maximum Alert Level 3 | . . . . 1 1 . 1 . . . . . . . . . . . . . . 3 2 1 3 2 2 Low Security (%) 60 | 100 100 100 . 63 43 100 92 . . . . . 100 . . . . 100 100 100 100 36 . 64 7 10 45 Level 1 19 | . . . . 36 56 . 7 . . . . . . . . . . . . . . 22 61 35 2 35 41 Level 2 14 | . . . . . . . . . . . . . . . . . . . . . . 37 38 . 46 54 13 Level 3 6 | . . . . . . . . . . . . . . . . . . . . . . 2 . . 43 . . Level 4 . | . . . . . . . . . . . . . . . . . . . . . . . . . . . . Level 5 . | . . . . . . . . . . . . . . . . . . . . . . . . . . . . High Security . | . . . . . . . . . . . . . . . . . . . . . . . . . . . . Max Security . | . . . . . . . . . . . . . . . . . . . . . . . . . . . . Peak Influence 1005 | . 133 107 . 334 285 97 250 . . . . . 100 . . . . 149 196 154 199 724 575 333 1005 599 530 Initial 564 | . . . . . 130 21 250 . . . . . . . . . . . 46 . 50 58 379 212 56 564 166 Average 213 | . 42 18 . 181 171 16 25 . . . . . 40 . . . . 59 75 90 155 312 396 171 593 391 247 Influence Increases 11539 | . 377 227 . 654 652 372 459 90 30 . . 50 440 65 290 300 . 376 526 363 216 952 731 935 1743 663 1028 Destroy 0b10 Robot/C 4880 | . 220 160 . 400 320 140 80 80 20 . . 40 160 20 . 20 . 140 260 160 80 300 280 360 660 280 700 Destroy 0b10 Robot/NC 465 | . 35 10 . 40 65 20 15 . . . . . 15 . 5 10 . 20 35 10 10 30 30 25 20 40 30 Destroy Leader 1012 | . 50 20 . 78 114 . 24 10 10 . . 10 40 . . . . 34 36 . . 68 72 128 136 46 136 Allied During Kill 735 | . . 3 . 3 . 32 . . . . . . . . . . . . 130 136 90 300 23 . . 18 . Successful Hack 396 | . 22 . . 14 15 28 82 . . . . . 28 . . . . 42 38 7 . 22 21 41 . . 36 Select Force Hacks 250 | . . . . . . 150 . . . . . . . . . . . . . . . 100 . . . . . Disable Machine 615 | . . . . 60 45 . . . . . . . 45 . . . . 60 . . 30 30 90 75 45 105 30 Anti-Garrison Action 600 | . . . . . . . . . . . . . . . . . . . . . . . 150 . 450 . . Destroy Structure 956 | . 20 34 . 29 18 2 8 . . . . . 92 . . . . 80 12 50 6 102 50 126 147 84 96 Advance Influence 250 | . . . . . . . 250 . . . . . . . . . . . . . . . . . . . . Partial Spotted 60 | . . . . . 15 . . . . . . . 15 . . . . . . . . . 15 . 15 . . Lose Combat Pursuer 1320 | . 30 . . 30 60 . . . . . . . 45 45 285 270 . . 15 . . . . 180 270 90 . Influence Decreases 11023 | . 377 227 . 345 905 428 395 154 30 . . 50 373 132 219 205 166 280 622 238 175 394 1077 1212 840 1370 809 Entered New Map 1862 | . . . . . 179 35 . 25 . . . . . 26 . 71 166 . 50 . 75 108 345 166 45 440 131 Time Decay 7420 | . 338 213 . 305 526 375 245 129 30 . . 50 353 106 219 134 . 280 532 198 80 206 562 746 735 580 478 Lost Part 210 | . . . . 20 50 . . . . . . . . . . . . . . . . . . . 60 30 50 Lost Ally 442 | . . 14 . 20 . 18 150 . . . . . 20 . . . . . 40 40 20 80 20 . . 20 . Purge Threat 1089 | . 39 . . . 150 . . . . . . . . . . . . . . . . . 150 300 . 300 150 Squads Dispatched 46 | . 1 . . 2 1 . 4 . . . . . 5 . . . . 5 . . . 4 6 1 1 11 5 Investigation 6 | . . . . . . . 1 . . . . . . . . . . 1 . . . 2 2 . . . . Extermination 21 | . . . . . . . 3 . . . . . 5 . . . . 3 . . . . . 1 . 5 4 Reinforcement 19 | . 1 . . 2 1 . . . . . . . . . . . . 1 . . . 2 4 . 1 6 1 Assault . | . . . . . . . . . . . . . . . . . . . . . . . . . . . . Garrison . | . . . . . . . . . . . . . . . . . . . . . . . . . . . . Intercept . | . . . . . . . . . . . . . . . . . . . . . . . . . . . . Searches Triggered . | . . . . . . . . . . . . . . . . . . . . . . . . . . . . Construction Impeded 2 | . . . . 1 . . . . . . . . . . . . . . . . . . . . . 1 . Haulers Reinforced 4 | . . . . . . . . . . . . . . . . . . . . . . 1 2 . 1 . . Active Scanning Responses . | . . . . . . . . . . . . . . . . . . . . . . . . . . . . Cargo Convoy Interrupts . | . . . . . . . . . . . . . . . . . . . . . . . . . . . . Stealth | -11 -10 -10 -10 -8 -8 -8 -6 -6 -6 -6 -6 -5 -5 -5 -5 -5 -4 -4 -4 -4 -4 -4 -3 -3 -2 -2 -2 --------- Run | Yrd Mat Min Sub Mat Sto Rec Fac Low Low Zio Dee Pro Fac Upp Upp War Pro Fac Ext Cet Arc Hub Res Qua Res Tes Frg Distress Signals 33 | . 2 . . 3 2 2 . . . . . . 3 . . 1 . . 1 2 . 1 7 2 3 2 2 Communications Jammed 16 | . . . . . . . . . . . . . . 11 . . . . . . . . . . . 1 4 Distress Signals 5 | . . . . . . . . . . . . . . . . . . . . . . . . . . 1 4 Times Spotted 489 | . 19 7 4 30 23 9 6 4 2 20 11 2 20 5 19 62 . 14 10 10 6 16 24 31 66 23 46 Peak Tracking Total 21 | . 4 3 2 6 12 4 2 4 1 14 5 2 6 3 5 21 . 4 4 5 1 4 3 4 8 9 9 Tactical Retreats 45 | . 2 . . 1 3 . . . . 1 . . 2 2 9 6 . . 1 . . . . 5 11 2 . Traps | -11 -10 -10 -10 -8 -8 -8 -6 -6 -6 -6 -6 -5 -5 -5 -5 -5 -4 -4 -4 -4 -4 -4 -3 -3 -2 -2 -2 ------- Run | Yrd Mat Min Sub Mat Sto Rec Fac Low Low Zio Dee Pro Fac Upp Upp War Pro Fac Ext Cet Arc Hub Res Qua Res Tes Frg Traps Triggered 21 | . . . . . . . 1 . . . . . 3 . . . . 2 3 . . 1 5 1 . . 5 Indirectly . | . . . . . . . . . . . . . . . . . . . . . . . . . . . . Trap Hack Attempts . | . . . . . . . . . . . . . . . . . . . . . . . . . . . . Triggered . | . . . . . . . . . . . . . . . . . . . . . . . . . . . . Disarmed . | . . . . . . . . . . . . . . . . . . . . . . . . . . . . Reprogrammed . | . . . . . . . . . . . . . . . . . . . . . . . . . . . . Reused 6 | . . . . . . . . . . . . . . . 6 . . . . . . . . . . . . Traps Extracted . | . . . . . . . . . . . . . . . . . . . . . . . . . . . . Installed 7 | . . . . . . . . . . . . . . . 7 . . . . . . . . . . . . Triggered 6 | . . . . . . . . . . . . . . . 6 . . . . . . . . . . . . Most Traps Carried 5 | . . . . . . . . . . . . . . . 5 . . . . . . . . . . . . Machines | -11 -10 -10 -10 -8 -8 -8 -6 -6 -6 -6 -6 -5 -5 -5 -5 -5 -4 -4 -4 -4 -4 -4 -3 -3 -2 -2 -2 ---------- Run | Yrd Mat Min Sub Mat Sto Rec Fac Low Low Zio Dee Pro Fac Upp Upp War Pro Fac Ext Cet Arc Hub Res Qua Res Tes Frg Machines Disabled 53 | . . . . 4 3 . . . . . 2 . 3 . . 1 . 4 . . 2 2 7 6 6 10 3 Max in Single Turn 4 | . . . . 1 1 . . . . . 1 . 1 . . 1 . 4 . . 1 1 1 1 1 2 1 Garrison Access 6 | . . . . . . . . . . . . . . . . . . . . . . . 2 . 3 1 . Network Hub 2 | . . . . . . . . . . . . . . . . . . . . . . 2 . . . . . Machines Repaired . | . . . . . . . . . . . . . . . . . . . . . . . . . . . . Machines Dismantled . | . . . . . . . . . . . . . . . . . . . . . . . . . . . . Machines Sabotaged 2 | . . . . . . . . . . . . . . . . . . . . . . 2 . . . . . Overloaded Fab Kills . | . . . . . . . . . . . . . . . . . . . . . . . . . . . . Hacking | -11 -10 -10 -10 -8 -8 -8 -6 -6 -6 -6 -6 -5 -5 -5 -5 -5 -4 -4 -4 -4 -4 -4 -3 -3 -2 -2 -2 --------- Run | Yrd Mat Min Sub Mat Sto Rec Fac Low Low Zio Dee Pro Fac Upp Upp War Pro Fac Ext Cet Arc Hub Res Qua Res Tes Frg Machines Accessed 112 | . 9 . . 4 8 12 12 1 . . . . 10 . 1 1 . 8 11 1 . 4 7 6 3 6 8 Terminals 76 | . 7 . . 2 7 6 6 . . . . . 8 . . . . 5 10 1 . 4 2 6 . 4 8 Fabricators 4 | . . . . . . . 3 . . . . . . . . . . . . . . . 1 . . . . Repair Stations 3 | . . . . 1 1 . . . . . . . . . . . . 1 . . . . . . . . . Recycling Units 17 | . 2 . . 1 . 5 3 . . . . . 2 . . . . 1 1 . . . 2 . . . . Scanalyzers 1 | . . . . . . . . . . . . . . . . . . . . . . . . . . 1 . Garrison Access 7 | . . . . . . . . . . . . . . . . . . 1 . . . . 2 . 3 1 . Total Hacks 299 | . 27 . . 10 27 35 30 1 . . . . 20 . 1 1 . 21 20 1 . 8 20 25 7 15 30 Successful 151 | . 18 . . 6 15 24 16 1 . . . . 4 . 1 1 . 12 15 1 . 5 5 10 . 6 11 Failed 147 | . 8 . . 4 12 11 14 . . . . . 16 . . . . 9 5 . . 3 15 15 7 9 19 Catastrophic 26 | . 1 . . 1 2 . 4 . . . . . 3 . . . . 1 1 . . . 3 1 3 1 5 Database Lockouts 1 | . 1 . . . . . . . . . . . . . . . . . . . . . . . . . . Manual 149 | . 25 . . 7 13 20 18 . . 4 . . 12 . . . . 9 4 1 . 7 4 12 . 4 9 Terminals 223 | . 25 . . 7 22 20 17 . . . . . 15 . . . . 13 19 1 . 8 9 25 . 12 30 Fabricators 11 | . . . . . . . 8 . . . . . . . . . . . . . . . 3 . . . . Repair Stations 10 | . . . . 2 5 . . . . . . . . . . . . 3 . . . . . . . . . Recycling Units 33 | . 2 . . 1 . 13 5 . . . . . 5 . . . . 3 1 . . . 3 . . . . Scanalyzers 2 | . . . . . . . . . . . . . . . . . . . . . . . . . . 2 . Garrison Access 15 | . . . . . . . . . . . . . . . . . . 2 . . . . 5 . 7 1 . Terminal Hacks 77 | . 8 . . 1 10 7 6 1 . . . . . . 1 1 . 6 12 1 . 1 1 8 . 4 9 Part Schematic 2 | . . . . . . 1 1 . . . . . . . . . . . . . . . . . . . . Robot Analysis 3 | . 2 . . . 1 . . . . . . . . . . . . . . . . . . . . . . Prototype ID Bank 6 | . . . . . 1 1 1 . . . . . . . . . . . 1 . . . . . . . 2 Open Door 14 | . . . . . 2 . . 1 . . . . . . 1 1 . . 7 1 . . . . . 1 . Branch Access Points 2 | . . . . . . . 1 . . . . . . . . . . 1 . . . . . . . . . Terminal Index 6 | . 1 . . 1 1 . 1 . . . . . . . . . . . 1 . . . . . . . 1 Alert Level 6 | . . . . . 1 1 . . . . . . . . . . . 1 1 . . . . 1 . . 1 Unreport Threat 8 | . 1 . . . 1 . . . . . . . . . . . . . . . . . 1 2 . 2 1 Locate Traps 14 | . 4 . . . 1 . . . . . . . . . . . . 1 2 . . 1 . 3 . . 2 Security Status 1 | . . . . . . . . . . . . . . . . . . . . . . . . 1 . . . Recall Extermination 1 | . . . . . . . 1 . . . . . . . . . . . . . . . . . . . . Hauler Manifests 1 | . . . . . . . . . . . . . . . . . . 1 . . . . . . . . . Registered Components 1 | . . . . . . . . . . . . . . . . . . 1 . . . . . . . . . Registered Prototypes 1 | . . . . . . . . . . . . . . . . . . . . . . . . 1 . . . Zone Layout 9 | . . . . . 2 2 1 . . . . . . . . . . 1 . . . . . . . 1 2 Release Object 2 | . . . . . . 2 . . . . . . . . . . . . . . . . . . . . . Fabricator Hacks 2 | . . . . . . . 2 . . . . . . . . . . . . . . . . . . . . Load Schematic 1 | . . . . . . . 1 . . . . . . . . . . . . . . . . . . . . Build 1 | . . . . . . . 1 . . . . . . . . . . . . . . . . . . . . Repair Station Hacks 8 | . . . . 2 4 . . . . . . . . . . . . 2 . . . . . . . . . Scan Component 4 | . . . . 1 2 . . . . . . . . . . . . 1 . . . . . . . . . Repair 4 | . . . . 1 2 . . . . . . . . . . . . 1 . . . . . . . . . Recycling Unit Hacks 14 | . 2 . . . . 5 2 . . . . . 1 . . . . 1 1 . . . 2 . . . . Retrieve Components 14 | . 2 . . . . 5 2 . . . . . 1 . . . . 1 1 . . . 2 . . . . Scanalyzer 1 | . . . . . . . . . . . . . . . . . . . . . . . . . . 1 . Insert Component 1 | . . . . . . . . . . . . . . . . . . . . . . . . . . 1 . Garrison Access Hacks 2 | . . . . . . . . . . . . . . . . . . . . . . . 1 . . 1 . Seal Access 2 | . . . . . . . . . . . . . . . . . . . . . . . 1 . . 1 . Unauthorized Hacks 47 | . 8 . . 3 1 12 6 . . . . . 3 . . . . 3 2 . . 4 1 2 . . 2 Terminals 39 | . 8 . . 3 1 7 3 . . . . . 3 . . . . 3 2 . . 4 1 2 . . 2 Assimilate 3 | . . . . . . . 1 . . . . . 2 . . . . . . . . . . . . . . Botnet 22 | . 3 . . 1 1 2 2 . . . . . 1 . . . . 3 2 . . 2 1 2 . . 2 Skim 12 | . 5 . . 2 . 5 . . . . . . . . . . . . . . . . . . . . . Sabotage 2 | . . . . . . . . . . . . . . . . . . . . . . 2 . . . . . Fabricators 2 | . . . . . . . 2 . . . . . . . . . . . . . . . . . . . . Report 1 | . . . . . . . 1 . . . . . . . . . . . . . . . . . . . . Haulers 1 | . . . . . . . 1 . . . . . . . . . . . . . . . . . . . . Repair Stations . | . . . . . . . . . . . . . . . . . . . . . . . . . . . . Recycling Units 6 | . . . . . . 5 1 . . . . . . . . . . . . . . . . . . . . Monitor 1 | . . . . . . . 1 . . . . . . . . . . . . . . . . . . . . Tunnel 5 | . . . . . . 5 . . . . . . . . . . . . . . . . . . . . . Scanalyzers . | . . . . . . . . . . . . . . . . . . . . . . . . . . . . Garrison Access . | . . . . . . . . . . . . . . . . . . . . . . . . . . . . Data Cores Recovered 3 | . . . . . . . . . . . . . . . . . . 1 . . . . . . . 1 1 Used 2 | . . . . . . . . . . . . . . . . . . 1 . . . . . . . . 1 Hacking Detections 88 | . 8 . . 3 7 8 12 . . . . . 10 . . . . 8 7 . . 1 5 5 3 4 7 Full Trace Events 2 | . . . . . . . 1 . . . . . . . . . . 1 . . . . . . . . . Feedback Events . | . . . . . . . . . . . . . . . . . . . . . . . . . . . . Feedback Blocked . | . . . . . . . . . . . . . . . . . . . . . . . . . . . . Robot Schematics Acquired 2 | . . . . . . . . . . . . . . . . . . . . . . . . . . 2 . Robots Built . | . . . . . . . . . . . . . . . . . . . . . . . . . . . . Authchips . | . . . . . . . . . . . . . . . . . . . . . . . . . . . . Time . | . . . . . . . . . . . . . . . . . . . . . . . . . . . . Total Robot Build Rating . | . . . . . . . . . . . . . . . . . . . . . . . . . . . . Part Schematics Acquired 5 | . . . . . . 1 1 . . . . . . . . . . . . . . . . . . 3 . Parts Built 2 | . . . . . . . 2 . . . . . . . . . . . . . . . . . . . . Authchips . | . . . . . . . . . . . . . . . . . . . . . . . . . . . . Time 53 | . . . . . . . 53 . . . . . . . . . . . . . . . . . . . . Total Part Build Rating 12 | . . . . . . . 12 . . . . . . . . . . . . . . . . . . . . Parts Repaired 4 | . . . . 1 2 . . . . . . . . . . . . 1 . . . . . . . . . Time 162 | . . . . 26 82 . . . . . . . . . . . . 54 . . . . . . . . . Parts Recycled . | . . . . . . . . . . . . . . . . . . . . . . . . . . . . Recycled Matter . | . . . . . . . . . . . . . . . . . . . . . . . . . . . . Retrieved Matter . | . . . . . . . . . . . . . . . . . . . . . . . . . . . . Retrieved Components 65 | . 11 . . . . 25 3 . . . . . . . . . . 3 3 . . . 20 . . . . Parts Scanalyzed . | . . . . . . . . . . . . . . . . . . . . . . . . . . . . Part Schematics Acquired . | . . . . . . . . . . . . . . . . . . . . . . . . . . . . Parts Damaged . | . . . . . . . . . . . . . . . . . . . . . . . . . . . . Bothacking | -11 -10 -10 -10 -8 -8 -8 -6 -6 -6 -6 -6 -5 -5 -5 -5 -5 -4 -4 -4 -4 -4 -4 -3 -3 -2 -2 -2 ------------ Run | Yrd Mat Min Sub Mat Sto Rec Fac Low Low Zio Dee Pro Fac Upp Upp War Pro Fac Ext Cet Arc Hub Res Qua Res Tes Frg Used RIF Installer . | . . . . . . . . . . . . . . . . . . . . . . . . . . . . Robots Hacked . | . . . . . . . . . . . . . . . . . . . . . . . . . . . . Non-combat . | . . . . . . . . . . . . . . . . . . . . . . . . . . . . Combat . | . . . . . . . . . . . . . . . . . . . . . . . . . . . . Robot Hacks Applied . | . . . . . . . . . . . . . . . . . . . . . . . . . . . . Relay Couplers Released 8 | . . . . . . . . . . . . . . . . . . . . . . . 2 . 2 4 . Machine Destruction 4 | . . . . . . . . . . . . . . . . . . . . . . . 2 . 2 . . Programmers 4 | . . . . . . . . . . . . . . . . . . . . . . . . . . 4 . Fabnet Peak Effective % . | . . . . . . . . . . . . . . . . . . . . . . . . . . . . Robots Rewired 14 | . . . . . . 10 . . . . . . . . . . . . 3 . . . . . . 1 . Allies Hacked . | . . . . . . . . . . . . . . . . . . . . . . . . . . . . Hacks Repelled . | . . . . . . . . . . . . . . . . . . . . . . . . . . . . Allies | -11 -10 -10 -10 -8 -8 -8 -6 -6 -6 -6 -6 -5 -5 -5 -5 -5 -4 -4 -4 -4 -4 -4 -3 -3 -2 -2 -2 -------- Run | Yrd Mat Min Sub Mat Sto Rec Fac Low Low Zio Dee Pro Fac Upp Upp War Pro Fac Ext Cet Arc Hub Res Qua Res Tes Frg Total Allies 35 | . . 6 . . . 10 1 . . . . . 2 . . . . . 10 5 . . . . . 1 . Largest Group 10 | . . 5 4 3 . 9 9 1 1 . . . 1 . . . . . 8 10 8 6 1 . . 1 . Highest-Rated Group 790 | . . 81 50 42 . 145 145 10 10 . . . 26 . . . . . 422 790 711 519 91 . . 158 . Highest-Rated Ally 159 | . . 31 16 16 . 27 27 10 10 . . . 26 . . . . . 159 159 152 96 91 . . 158 . Total Orders 22 | . . . . . . 2 8 . . . . . 3 . . . . . . . . 7 2 . . . . STAY 12 | . . . . . . 1 4 . . . . . 2 . . . . . . . . 4 1 . . . . FOLLOW 10 | . . . . . . 1 4 . . . . . 1 . . . . . . . . 3 1 . . . . Ally Attacks 293 | . . 5 25 9 . 21 8 . . . . . . . . . . . 69 32 21 86 8 . . 9 . Total Damage 8425 | . . 82 304 114 . 269 151 . . . . . . . . . . . 1659 1466 620 3005 145 . . 610 . Kills 44 | . . 1 2 3 . 3 1 . . . . . . . . . . . 12 3 2 14 1 . . 2 . Allies Corrupted 1 | . . . . . . . . . . . . . . . . . . . . . . . . . . 1 . Allies Melted 6 | . . . . . . . . . . . . . . . . 2 . . . . . . . . 4 . . Intel | -11 -10 -10 -10 -8 -8 -8 -6 -6 -6 -6 -6 -5 -5 -5 -5 -5 -4 -4 -4 -4 -4 -4 -3 -3 -2 -2 -2 ------- Run | Yrd Mat Min Sub Mat Sto Rec Fac Low Low Zio Dee Pro Fac Upp Upp War Pro Fac Ext Cet Arc Hub Res Qua Res Tes Frg Active Infowar (turns) 26386 | . . . . . . . 1582 523 392 952 1086 414 1523 979 1212 1128 448 964 1884 414 168 429 1674 3903 3690 1784 1237 Optics 25647 | . . . . . . . 1582 523 392 952 1086 414 1523 979 1212 1128 448 964 1884 414 168 429 1657 3892 3690 1784 526 Sensors 16421 | . . . . . . . 1466 523 392 823 . . 537 453 . 493 . 765 695 . 1 323 1494 1966 3653 1647 1190 IFF 4612 | . . . . . . . . . . . 841 395 817 447 1126 315 438 44 131 . . 58 . . . . . Jamming 4614 | . . . . . . . . . . . . . . 28 . . . 70 . . . 27 1550 422 . 1280 1237 Robot Analysis Total 3 | . 2 . . . 1 . . . . . . . . . . . . . . . . . . . . . . Derelict Logs Recovered 11 | . . 2 1 . . . . 1 1 2 . . . 1 2 . 1 . . . . . . . . . . Drone Launches . | . . . . . . . . . . . . . . . . . . . . . . . . . . . . Drone Recoveries . | . . . . . . . . . . . . . . . . . . . . . . . . . . . . Exploration | -11 -10 -10 -10 -8 -8 -8 -6 -6 -6 -6 -6 -5 -5 -5 -5 -5 -4 -4 -4 -4 -4 -4 -3 -3 -2 -2 -2 ------------- Run | Yrd Mat Min Sub Mat Sto Rec Fac Low Low Zio Dee Pro Fac Upp Upp War Pro Fac Ext Cet Arc Hub Res Qua Res Tes Frg Turns Passed 33375 | 73 1229 1075 424 748 1474 1950 1584 523 392 952 1086 414 1537 979 1212 1128 448 964 1884 414 168 429 1674 3903 3690 1784 1237 Spaces Moved 25174 | 43 535 615 218 330 608 961 1234 610 434 1212 1089 489 1380 1032 1125 976 467 982 1139 187 75 360 1437 2816 3628 650 542 Core 15 | 15 . . . . . . . . . . . . . . . . . . . . . . . . . . . Treads 18843 | 28 535 615 218 146 608 691 1233 610 434 1212 1089 489 1380 1032 1125 976 467 97 17 . . . . 1923 3085 393 440 Legs 104 | . . . . . . . . . . . . . . . . . . 7 . . . . . 55 . 42 . Wheels 454 | . . . . 184 . 270 . . . . . . . . . . . . . . . . . . . . . Hover 5031 | . . . . . . . 1 . . . . . . . . . . 878 1122 187 75 360 1437 837 . 32 102 Flight 727 | . . . . . . . . . . . . . . . . . . . . . . . . 1 543 183 . Fastest Speed 50 | 50 160 160 160 125 160 130 74 74 74 74 74 74 74 74 74 74 74 57 57 87 87 87 87 51 51 69 79 Average Speed 92 | 144 160 160 160 140 160 164 83 74 74 74 74 74 74 74 74 74 74 58 78 87 87 87 87 97 66 181 140 Slowest Speed 313 | 250 160 160 160 160 160 240 189 74 74 74 74 74 74 74 74 74 74 74 170 87 87 87 136 170 69 313 227 Overloaded Moves . | . . . . . . . . . . . . . . . . . . . . . . . . . . . . Propulsion Burnouts . | . . . . . . . . . . . . . . . . . . . . . . . . . . . . Robots Hopped 2 | . . . . . . . . . . . . . . . . . . . . . . . . . 2 . . Potential Cave-ins 2 | . . . . . . . . . . . . . . . . . . . . . . . . . 2 . . Cave-ins Triggered . | . . . . . . . . . . . . . . . . . . . . . . . . . . . . Teleports 3 | . . . . . . . . . . . . . . . . . . . . . . . . 3 . . . Exploration Rate (%) 62 | 3 96 95 12 23 92 99 31 70 64 88 83 70 35 88 73 93 58 20 91 73 86 28 48 96 53 68 27 Regions Visited 27 Branch Regions 20 Pre-discovered Areas 11 | . 2 . 1 . . 6 . . . 2 . . . . . . . . . . . . . . . . . Known Exits Taken 23 | . . 1 1 1 1 . 1 1 1 1 1 1 1 1 1 1 1 1 1 1 1 1 1 1 1 . . Unknown Exits Taken 4 | 1 1 . . . . 1 . . . . . . . . . . . . . . . . . . . 1 . Scrap Searched 29 | . . 1 7 . . . . 2 3 3 . 4 . 5 1 . 3 . . . . . . . . . . Spaces Dug 164 | . . . 3 . 1 1 5 3 3 . 4 . 35 6 1 2 9 14 2 . . . 6 47 10 6 6 Terrain Destroyed 640 | . 17 61 4 26 23 1 8 52 6 . 15 52 48 7 2 3 10 39 6 2 1 7 21 102 68 27 32 Melee 99 | . . . . . . . 5 . . . . . 30 6 1 2 9 14 2 . . . 4 14 3 6 3 Projectile 243 | . . . 4 6 1 1 3 11 6 . 9 . 18 1 1 1 1 7 4 2 1 7 17 27 65 21 29 AOE 298 | . 17 61 . 20 22 . . 41 . . 6 52 . . . . . 18 . . . . . 61 . . . Terrain Rammed . | . . . . . . . . . . . . . . . . . . . . . . . . . . . . Walls Destroyed . | . . . . . . . . . . . . . . . . . . . . . . . . . . . . Machines Disabled . | . . . . . . . . . . . . . . . . . . . . . . . . . . . . Actions | -11 -10 -10 -10 -8 -8 -8 -6 -6 -6 -6 -6 -5 -5 -5 -5 -5 -4 -4 -4 -4 -4 -4 -3 -3 -2 -2 -2 --------- Run | Yrd Mat Min Sub Mat Sto Rec Fac Low Low Zio Dee Pro Fac Upp Upp War Pro Fac Ext Cet Arc Hub Res Qua Res Tes Frg Total 34097 | 51 846 696 275 505 959 1296 1767 661 494 1258 1342 533 1778 1221 1493 1356 549 1309 2093 424 164 449 1792 3844 4818 1190 934 Wait 6556 | . 252 44 17 56 168 208 459 30 45 23 176 26 254 159 311 284 72 245 862 212 70 45 207 780 928 404 219 Move 25143 | 42 534 614 217 329 607 960 1233 609 433 1211 1088 488 1379 1031 1124 975 466 981 1138 186 74 359 1436 2815 3623 649 542 Hop 2 | . . . . . . . . . . . . . . . . . . . . . . . . . 2 . . Pick Up 244 | 3 14 6 8 18 17 5 16 . 2 4 8 3 19 4 17 15 . 9 2 1 . . 11 16 32 8 6 Fast Attach 161 | 6 2 1 . 7 16 3 4 . . . 12 2 5 . . 13 . 4 16 2 1 2 10 23 13 11 8 Attach 36 | . . . . 4 5 . 4 1 . 2 . 1 2 1 . 1 . 2 1 . . . 2 2 3 4 1 Detach 9 | . . . . . . 2 . . . . . . . . . 1 . . . . . . 2 . 2 1 1 Swap 213 | . 6 8 6 9 15 3 8 1 . 1 7 6 13 7 6 9 1 18 13 . 1 8 13 31 8 10 5 Drop 364 | . 5 11 10 20 36 15 18 1 1 4 20 4 19 5 17 28 . 11 14 3 1 2 19 32 38 18 12 Fire 1004 | . 33 12 17 62 95 29 15 19 13 13 31 3 44 2 4 24 1 18 12 20 17 16 64 121 161 52 106 Melee 185 | . . . . . . . 10 . . . . . 43 12 7 6 9 21 11 . . 4 12 24 8 14 4 Ram . | . . . . . . . . . . . . . . . . . . . . . . . . . . . . Kick . | . . . . . . . . . . . . . . . . . . . . . . . . . . . . Crush . | . . . . . . . . . . . . . . . . . . . . . . . . . . . . Escape Stasis 73 | . . . . . . . . . . . . . . . . . . . 13 . . 13 16 . . 1 30 Rewire 100 | . . . . . . 71 . . . . . . . . . . . . 11 . . . . . . 18 . Trap 7 | . . . . . . . . . . . . . . . 7 . . . . . . . . . . . . Miscellaneous . | . . . . . . . . . . . . . . . . . . . . . . . . . . . . Route ------- -11/Scrapyard -10/Materials (discovered 6 exits: *Mat x3 / [*Min x2] / Sub) -10/Mines (discovered 3 exits: *Mat x2 / *Sub) -10/Subcaves -8/Materials (discovered 4 exits: *Fac x3 / *Sto) -8/Storage (discovered 2 exits: *Fac / *Rec) -8/Recycling -6/Factory (discovered 4 exits: Fac x2 / *Low x2) -6/Lower Caves -6/Lower Caves (discovered 2 exits: *Fac / *Zio) -6/Zion (discovered 2 exits: *Dee / *Pro) -6/Deep Caves -5/Proximity Caves -5/Factory -5/Upper Caves -5/Upper Caves -5/Warlord -4/Proximity Caves -4/Factory (discovered 7 exits: *Res x2 / *Upp x2 / *Ext x2 / Arm) -4/Extension (discovered 2 exits: *Res / *Cet) -4/Cetus (discovered 2 exits: *Res / *Arc) -4/Archives (discovered 3 exits: *Res / *Hub x2) -4/Hub_04(d) -3/Research (discovered 3 exits: *Res / *Qua x2) -3/Quarantine -2/Research (discovered 4 exits: *Acc x3 / *Tes) -2/Testing (discovered 2 exits: [*Sec] / *Frg) -2/Protoforge (discovered 1 exit: *Acc) History --------- Turn | Location | Event 5 | -11/Scrapyard | Discovered new exit (range 15) 74 | -11/Scrapyard | Entered Materials 265 | -10/Materials | Discovered new exit (range 7) 273 | -10/Materials | Central database locked down 307 | -10/Materials | Build established: Mutant 626 | -10/Materials | Discovered new exit (range 13) 663 | -10/Materials | Discovered new exit (range 15) 802 | -10/Materials | Discovered new exit (range 5) 862 | -10/Materials | Learned location of Mines (-9) 901 | -10/Materials | Discovered new exit (range 4) 939 | -10/Materials | Identified exit to Subcaves 939 | -10/Materials | Learned location of 2 exits from Materials 1004 | -10/Materials | Learned 2 Storage zone layouts 1061 | -10/Materials | Learned Storage trap positions 1106 | -10/Materials | Learned Storage emergency access door positions 1139 | -10/Materials | Learned location of 2 exits from Materials 1194 | -10/Materials | Learned location of 2 exits from Mines 1236 | -10/Materials | Learned location of 2 exits from Mines 1303 | -10/Materials | Entered Mines 1304 | -10/Mines | Identified exit to Materials 1449 | -10/Mines | Learned location of 1 exit from Materials 1530 | -10/Mines | Learned 8 Materials zone layouts 2048 | -10/Mines | Build established: Scavenger-Mutant 2071 | -10/Mines | Received a Mining Laser from a helpful Derelict 2198 | -10/Mines | Assisted by bots powering up and referring to "LRC-V3" 2378 | -10/Mines | Entered Subcaves 2378 | -10/Subcaves | Accompanied by 4 allies 2379 | -10/Subcaves | Approached by a straggling Scientist 2424 | -10/Subcaves | Disturbed a concealed Subdweller 2511 | -10/Subcaves | Disturbed a concealed Subdweller 2654 | -10/Subcaves | Identified exit to Materials 2697 | -10/Subcaves | Learned location of Zion (-6) 2697 | -10/Subcaves | Met a Zionite searching for "candidates" 2787 | -10/Subcaves | Build established: Mutant 2802 | -10/Subcaves | Entered Materials 2802 | -8/Materials | Accompanied by 3 allies 2802 | -8/Materials | Evolved 4 slots: Propulsion x2, Utility x2 2803 | -8/Materials | Identified exit to Factory 2803 | -8/Materials | Identified exit to Storage 2938 | -8/Materials | Lost 3 allies 3148 | -8/Materials | Repaired Lgt. Treads 3271 | -8/Materials | Build established: Scavenger-Mutant 3550 | -8/Materials | Entered Storage 3551 | -8/Storage | Identified exit to Recycling 3552 | -8/Storage | Loaded intel: 26 trap records 3725 | -8/Storage | Repaired Beamcaster 3759 | -8/Storage | Repaired Imp. Treads 3978 | -8/Storage | Destroyed 7 combat bots 4028 | -8/Storage | Lost 4 parts (1p1n1u1w) 4446 | -8/Storage | Discovered exit to Factory (range 12) 5021 | -8/Storage | Used back door to open Recycling access 5024 | -8/Storage | Entered Recycling 5672 | -8/Recycling | Learned location of Extension (-4) 5706 | -8/Recycling | Learned Storage stockpile data 5722 | -8/Recycling | Discovered new exit (range 14) 5730 | -8/Recycling | Learned Factory repair station intel 5745 | -8/Recycling | Learned Factory emergency access door positions 5748 | -8/Recycling | Learned location of 1 exit from Recycling 5749 | -8/Recycling | Learned location of 2 exits from Factory 5755 | -8/Recycling | Learned 2 Storage zone layouts 5791 | -8/Recycling | Build established: Commander-Mutant 5948 | -8/Recycling | Entered Scraplab 5955 | -8/Recycling | Found Prototype Device 5955 | -8/Recycling | Identified Scrap Engine 6560 | -8/Recycling | Build established: Commander-Construct 6974 | -8/Recycling | Entered Factory 6974 | -6/Factory | Accompanied by 9 allies 6974 | -6/Factory | Evolved 4 slots: Propulsion x1, Utility x2, Weapon x1 6975 | -6/Factory | Identified exit to Factory 6977 | -6/Factory | Loaded intel: 6 repair station locations 7134 | -6/Factory | Lost 9 allies 7293 | -6/Factory | Found Prototype Launcher 7293 | -6/Factory | Identified Scatter Rocket Array 7392 | -6/Factory | Build established: Construct 8042 | -6/Factory | Identified exit to Lower Caves 8097 | -6/Factory | Spotted B-75 Beast 8372 | -6/Factory | Fabricated Cmb. Gravmag System (x2) 8558 | -6/Factory | Entered Lower Caves 8558 | -6/Lower Caves | Accompanied by 1 ally 8583 | -6/Lower Caves | Encountered a Warlord checkpoint 8627 | -6/Lower Caves | Learned Factory terminal intel 9072 | -6/Lower Caves | Discovered new exit (range 10) 9080 | -6/Lower Caves | Identified exit to Lower Caves 9081 | -6/Lower Caves | Entered another Lower Caves area 9081 | -6/Lower Caves | Accompanied by 1 ally 9170 | -6/Lower Caves | Discovered exit to Factory (range 12) 9246 | -6/Lower Caves | Learned Factory terminal intel 9286 | -6/Lower Caves | Encountered a Warlord checkpoint 9382 | -6/Lower Caves | Discovered new exit (range 3) 9473 | -6/Lower Caves | Identified exit to Zion 9473 | -6/Lower Caves | Entered Zion 9497 | -6/Zion | System corruption cleaned by Quarantine Array 9542 | -6/Zion | Discovered new exit (range 15) 9610 | -6/Zion | Identified exit to Deep Caves 9685 | -6/Zion | Learned Factory interactive machine intel 9766 | -6/Zion | Met Imprinter 9968 | -6/Zion | Identified exit to Proximity Caves 10144 | -6/Zion | Found CR-A16's Pointy Stick 10336 | -6/Zion | Attacked by Zionites 10350 | -6/Zion | Destroyed Imprinter 10364 | -6/Zion | Extracted access codes from Imprinter's data core 10412 | -6/Zion | Opened final containment barrier to the Deep Caves 10424 | -6/Zion | Saw the warning signs outside the Deep Caves entrance 10425 | -6/Zion | Entered Deep Caves 10627 | -6/Deep Caves | Found Prototype Protection 10627 | -6/Deep Caves | Identified Zio. Weapon Casing 10663 | -6/Deep Caves | Z-Facility disabled 10975 | -6/Deep Caves | Discovered new exit (range 11) 11463 | -6/Deep Caves | Spotted AG-83342 11510 | -6/Deep Caves | Identified exit to Proximity Caves 11511 | -6/Deep Caves | Entered Proximity Caves 11848 | -5/Proximity Caves | Discovered exit to Factory (range 9) 11923 | -5/Proximity Caves | System corruption reached 10% 11925 | -5/Proximity Caves | Entered Factory 11925 | -5/Factory | Evolved 2 slots: Power x1, Utility x1 11926 | -5/Factory | Loaded intel: 54 interactive machine locations 11927 | -5/Factory | Loaded intel: 26 terminal locations 12079 | -5/Factory | Spotted B-75 Beast 13106 | -5/Factory | Discovered new exit (range 5) 13158 | -5/Factory | Identified exit to Upper Caves 13462 | -5/Factory | Entered Upper Caves 13963 | -5/Upper Caves | Spotted B-75 Beast 14146 | -5/Upper Caves | Learned Factory emergency access door positions 14269 | -5/Upper Caves | Discovered new exit (range 6) 14272 | -5/Upper Caves | Identified exit to Upper Caves 14441 | -5/Upper Caves | Entered another Upper Caves area 14487 | -5/Upper Caves | Encountered a Warlord checkpoint 14497 | -5/Upper Caves | Learned location of 1 exit from Factory 14548 | -5/Upper Caves | Learned 8 Factory zone layouts 14582 | -5/Upper Caves | Spotted B-75 Beast 15533 | -5/Upper Caves | Discovered new exit (range 10) 15652 | -5/Upper Caves | Identified exit to Warlord 15653 | -5/Upper Caves | Entered Warlord 15867 | -5/Warlord | Visited the Vortex Lab 15873 | -5/Warlord | Found Prototype Energy Gun 15873 | -5/Warlord | Identified Vortex Rail 15877 | -5/Warlord | Found Prototype Energy Gun 15877 | -5/Warlord | Identified Vortex Shotgun 15878 | -5/Warlord | Warlord's base attacked by MAIN.C 15884 | -5/Warlord | Found Vortex Rail 15890 | -5/Warlord | Found Vortex Shotgun 15974 | -5/Warlord | Found Prototype Processor 15977 | -5/Warlord | Found Prototype Hackware 15981 | -5/Warlord | Found Prototype Device 15985 | -5/Warlord | Found Prototype Device 16003 | -5/Warlord | Identified Exp. Cloaking Device 16116 | -5/Warlord | Identified Ghost Barrier 16123 | -5/Warlord | Identified System Purifier 16136 | -5/Warlord | Identified Exp. Armor Integrity Analyzer 16209 | -5/Warlord | Met Warlord 16228 | -5/Warlord | Warlord forces counterattacked 16321 | -5/Warlord | Spotted Striker 16332 | -5/Warlord | Spotted Striker 16332 | -5/Warlord | Spotted B-86 Titan 16339 | -5/Warlord | Spotted B-75 Beast 16431 | -5/Warlord | Lost 18 allies 16553 | -5/Warlord | Warlord base infiltrated, sounded retreat 16554 | -5/Warlord | Enhanced Grunt warped into view 16554 | -5/Warlord | Enhanced Grunt warped into view 16554 | -5/Warlord | Enhanced Grunt warped into view 16554 | -5/Warlord | Enhanced Demolisher warped into view 16554 | -5/Warlord | Enhanced Demolisher warped into view 16554 | -5/Warlord | Enhanced Demolisher warped into view 16623 | -5/Warlord | Spotted Executioner 16623 | -5/Warlord | Spotted Executioner 16692 | -5/Warlord | Spotted Executioner 16704 | -5/Warlord | Spotted Striker 16706 | -5/Warlord | Spotted Striker 16746 | -5/Warlord | Spotted Striker 16762 | -5/Warlord | Found Prototype Processor 16771 | -5/Warlord | Discovered new exit (range 16) 16781 | -5/Warlord | Identified exit to Proximity Caves 16781 | -5/Warlord | Entered Proximity Caves 16800 | -4/Proximity Caves | Lost 14 allies 17150 | -4/Proximity Caves | Discovered new exit (range 14) 17162 | -4/Proximity Caves | Learned 4 Research zone layouts 17218 | -4/Proximity Caves | Identified exit to Factory 17229 | -4/Proximity Caves | Entered Factory 17229 | -4/Factory | Evolved 2 slots: Propulsion x1, Utility x1 17230 | -4/Factory | Identified exit to Armory 17231 | -4/Factory | Identified exit to Research 17233 | -4/Factory | Loaded intel: 27 terminal locations 17313 | -4/Factory | Identified Exp. Melee Analysis Suite 17529 | -4/Factory | Found Quantum Capacitor 17532 | -4/Factory | Discovered new exit (range 21) 17709 | -4/Factory | Discovered exit to Research (range 10) 17822 | -4/Factory | Identified exit to Upper Caves 17822 | -4/Factory | Identified exit to Extension 18160 | -4/Factory | Repaired Centrium Medium Armor Plating 18193 | -4/Factory | Entered Extension 18210 | -4/Extension | Rescued a captive Derelict 18266 | -4/Extension | Rescued a captive Derelict 18267 | -4/Extension | Rescued a captive Derelict 18276 | -4/Extension | Rescued a captive Derelict 18339 | -4/Extension | Rescued A7 18528 | -4/Extension | Spotted B-86 Titan 18718 | -4/Extension | Warlord forces began an assault 18792 | -4/Extension | Spotted B-86 Titan 18809 | -4/Extension | Allies destroyed B-86 Titan 18828 | -4/Extension | Allies destroyed B-86 Titan 18849 | -4/Extension | Lost 3 allies 18978 | -4/Extension | Rescued a captive Derelict 18986 | -4/Extension | Rescued a captive Derelict 19033 | -4/Extension | Rescued a captive Derelict 19143 | -4/Extension | Discovered exit to Research (range 10) 19144 | -4/Extension | Discovered new exit (range 6) 19305 | -4/Extension | Identified exit to Cetus 20077 | -4/Extension | Entered Cetus 20077 | -4/Cetus | Accompanied by 5 allies (A7) 20082 | -4/Cetus | Acquired a Cetus Manufacturing Module code from A7 20088 | -4/Cetus | Spotted Cetus Guard 20088 | -4/Cetus | Spotted Cetus Guard 20089 | -4/Cetus | Spotted Cetus Guard 20089 | -4/Cetus | Spotted Cetus Guard 20093 | -4/Cetus | Destroyed Cetus Guard 20099 | -4/Cetus | Destroyed Cetus Guard 20102 | -4/Cetus | Allies destroyed Cetus Guard 20112 | -4/Cetus | Destroyed Cetus Guard 20163 | -4/Cetus | Started Cetus Manufacturing Module 20170 | -4/Cetus | Escorted A7 to Cetus Mainframe 20188 | -4/Cetus | Manufactured an Enhanced Grunt 20213 | -4/Cetus | Manufactured an Enhanced Grunt 20238 | -4/Cetus | Manufactured an Enhanced Grunt 20263 | -4/Cetus | Manufactured an Enhanced Grunt 20288 | -4/Cetus | Manufactured an Enhanced Grunt 20349 | -4/Cetus | Discovered new exit (range 21) 20398 | -4/Cetus | Spotted Cetus Guard 20398 | -4/Cetus | Spotted Cetus Guard 20402 | -4/Cetus | Spotted Cetus Guard 20402 | -4/Cetus | Spotted Cetus Guard 20406 | -4/Cetus | Allies destroyed Cetus Guard 20409 | -4/Cetus | Destroyed Cetus Guard 20416 | -4/Cetus | Allies destroyed Cetus Guard 20418 | -4/Cetus | Destroyed Cetus Guard 20421 | -4/Cetus | Discovered exit to Research (range 22) 20432 | -4/Cetus | Met Revision 17 20474 | -4/Cetus | Identified exit to Archives 20491 | -4/Cetus | Entered Archives 20491 | -4/Archives | Accompanied by 8 allies (A7) 20496 | -4/Archives | Received a hacking code to weaken MAIN.C 20512 | -4/Archives | Build established: Commander-Construct 20545 | -4/Archives | Discovered new exit (range 22) 20557 | -4/Archives | Discovered exit to Research (range 17) 20620 | -4/Archives | Discovered new exit (range 16) 20650 | -4/Archives | Identified exit to Hub_04(d) 20659 | -4/Archives | Entered Hub_04(d) 20659 | -4/Hub_04(d) | Accompanied by 6 allies 20857 | -4/Hub_04(d) | Found Prototype Device 20857 | -4/Hub_04(d) | Identified Exp. Thermal Shield 20958 | -4/Hub_04(d) | Discovered exit to Research (range 8) 21008 | -4/Hub_04(d) | Network Hub disabled 21038 | -4/Hub_04(d) | Network Hub disabled 21079 | -4/Hub_04(d) | Spotted Lightning 21087 | -4/Hub_04(d) | Spotted Lightning 21088 | -4/Hub_04(d) | Spotted Lightning 21088 | -4/Hub_04(d) | Entered Research 21088 | -3/Research | Accompanied by 1 ally 21088 | -3/Research | Evolved 2 slots: Utility x1, Weapon x1 21089 | -3/Research | Identified exit to Quarantine 21202 | -3/Research | Build established: Construct 21288 | -3/Research | Revision forces began assault on 0b10 21302 | -3/Research | Met up with Revision 17++ 21491 | -3/Research | System corruption reached 10% 21635 | -3/Research | Spotted B-86 Titan 21788 | -3/Research | Research terminal network offline 21806 | -3/Research | Discovered exit to Quarantine (range 5) 21997 | -3/Research | Found Prototype Processor 22006 | -3/Research | Identified Exp. Targeting Computer 22056 | -3/Research | Spotted Striker 22059 | -3/Research | Spotted Striker 22081 | -3/Research | Destroyed Striker 22083 | -3/Research | Destroyed Striker 22188 | -3/Research | Spotted Striker 22197 | -3/Research | Spotted Striker 22207 | -3/Research | Destroyed Striker 22228 | -3/Research | Destroyed Striker 22349 | -3/Research | Spotted Striker 22363 | -3/Research | Destroyed Striker 22404 | -3/Research | Lost 6 allies 22608 | -3/Research | Found Prototype Processor 22611 | -3/Research | Identified Spectral Analyzer 22742 | -3/Research | Discovered new exit (range 13) 22752 | -3/Research | Identified exit to Research 22762 | -3/Research | Entered Quarantine 22877 | -3/Quarantine | Cryocooling Duct disabled 22892 | -3/Quarantine | Ambient heat levels rising (+20) 22892 | -3/Quarantine | Non-combat units ordered to evacuate 23248 | -3/Quarantine | Cryocooling Duct disabled 23263 | -3/Quarantine | Ambient heat levels rising (+20) 23263 | -3/Quarantine | Combat units ordered to evacuate 23363 | -3/Quarantine | Quarantine Guard activated 23550 | -3/Quarantine | Spotted Quarantine Guard 23568 | -3/Quarantine | Destroyed Quarantine Guard 23571 | -3/Quarantine | Spotted Quarantine Guard 23595 | -3/Quarantine | Destroyed Quarantine Guard 23596 | -3/Quarantine | Spotted Quarantine Guard 23614 | -3/Quarantine | Spotted Quarantine Guard 23617 | -3/Quarantine | Spotted Quarantine Guard 23639 | -3/Quarantine | Destroyed Quarantine Guard 23652 | -3/Quarantine | Spotted Quarantine Guard 23673 | -3/Quarantine | Destroyed Quarantine Guard 23898 | -3/Quarantine | Destroyed Quarantine Guard 23984 | -3/Quarantine | Destroyed Quarantine Guard 24074 | -3/Quarantine | Spotted Quarantine Guard 24107 | -3/Quarantine | Destroyed Quarantine Guard 24121 | -3/Quarantine | Spotted Quarantine Guard 24147 | -3/Quarantine | Destroyed Quarantine Guard 24204 | -3/Quarantine | Spotted Quarantine Guard 24222 | -3/Quarantine | Destroyed Quarantine Guard 24277 | -3/Quarantine | Spotted Quarantine Guard 24303 | -3/Quarantine | Destroyed Quarantine Guard 24893 | -3/Quarantine | Spotted Alpha 7 24913 | -3/Quarantine | Found Spectral Analyzer 25334 | -3/Quarantine | Found Alien Artifact 25468 | -3/Quarantine | Found Alien Artifact 25468 | -3/Quarantine | Identified Hpw. Transdimensional Reconstructor 25468 | -3/Quarantine | Warped through subspace 25552 | -3/Quarantine | Found Alien Artifact 25552 | -3/Quarantine | Identified Dimensional Node Initializer 25552 | -3/Quarantine | Initialized slip node 25557 | -3/Quarantine | Found Alien Artifact 25557 | -3/Quarantine | Identified Transdimensional Reconstructor 25557 | -3/Quarantine | Warped through subspace to slip node 25567 | -3/Quarantine | Found Transdimensional Reconstructor 25569 | -3/Quarantine | Found Transdimensional Reconstructor 25569 | -3/Quarantine | Warped through subspace to slip node 25572 | -3/Quarantine | Found Dimensional Node Initializer 25572 | -3/Quarantine | Initialized slip node 25574 | -3/Quarantine | Found Dimensional Node Initializer 25574 | -3/Quarantine | Initialized slip node 25645 | -3/Quarantine | Spotted Quarantine Guard 25715 | -3/Quarantine | Discovered exit to Research (range 5) 25715 | -3/Quarantine | Spotted Quarantine Guard 25778 | -3/Quarantine | Destroyed Quarantine Guard 26665 | -3/Quarantine | Entered Research 26665 | -2/Research | Warlord forces began assault on 0b10 26665 | -2/Research | Evolved 2 slots: Power x1, Utility x1 26691 | -2/Research | Discovered new exit (range 13) 26707 | -2/Research | Identified exit to Testing 26775 | -2/Research | Research machine network offline 26856 | -2/Research | Spotted B-90 Cyclops 26933 | -2/Research | Found Quantum Capacitor 26966 | -2/Research | Borebot progress halted 27021 | -2/Research | Found Prototype Device 27024 | -2/Research | Identified Exp. ECM Suite 27049 | -2/Research | Met up with Warlord 27117 | -2/Research | Spotted B-90 Cyclops 27165 | -2/Research | Destroyed B-90 Cyclops 27175 | -2/Research | Discovered new exit (range 23) 27189 | -2/Research | Identified exit to Access 27235 | -2/Research | Borebot progress halted 27261 | -2/Research | Found Prototype Processor 27271 | -2/Research | Identified Exp. Core Analyzer 27277 | -2/Research | Borebot progress halted 27513 | -2/Research | Discovered exit to Access (range 7) 27687 | -2/Research | Spotted Striker 27702 | -2/Research | Destroyed Striker 27715 | -2/Research | Met DD-05H 27729 | -2/Research | Found Prototype Device 27737 | -2/Research | Identified Adv. Kinecellerator 27757 | -2/Research | Warlord invited to help at Command 27757 | -2/Research | Given Cave Seal Controls access code 27765 | -2/Research | Spotted Striker 27797 | -2/Research | Spotted Striker 27798 | -2/Research | Spotted Executioner 27804 | -2/Research | Destroyed Executioner 27811 | -2/Research | Spotted Striker 27812 | -2/Research | Spotted Striker 27820 | -2/Research | Lost 3 allies 27833 | -2/Research | Destroyed Striker 28082 | -2/Research | Spotted Striker 28346 | -2/Research | Discovered exit to Access (range 5) 28417 | -2/Research | Spotted Executioner 28418 | -2/Research | Spotted Striker 28423 | -2/Research | Spotted Executioner 28464 | -2/Research | Destroyed Striker 28679 | -2/Research | Spotted Striker 28694 | -2/Research | Destroyed Striker 28699 | -2/Research | Spotted Striker 28706 | -2/Research | Destroyed Striker 28709 | -2/Research | Spotted Striker 28712 | -2/Research | Spotted Striker 28884 | -2/Research | Spotted Striker 28896 | -2/Research | Destroyed Striker 29073 | -2/Research | Destroyed Striker 29127 | -2/Research | Spotted Executioner 29156 | -2/Research | Lost 7 allies 29236 | -2/Research | Spotted Striker 29310 | -2/Research | Destroyed Executioner 29323 | -2/Research | Lost 4 allies 29379 | -2/Research | Spotted Striker 29419 | -2/Research | Spotted Striker 29487 | -2/Research | Spotted Striker 29517 | -2/Research | Destroyed Striker 29531 | -2/Research | Spotted Striker 29539 | -2/Research | Spotted Striker 29540 | -2/Research | Spotted Striker 29541 | -2/Research | Spotted Striker 29575 | -2/Research | Destroyed Striker 29582 | -2/Research | Destroyed Striker 29607 | -2/Research | Lost 6 allies 29615 | -2/Research | Build established: Scavenger-Construct 29715 | -2/Research | Lost 6 allies 29906 | -2/Research | Spotted Striker 29963 | -2/Research | Lost 4 allies 29963 | -2/Research | Spotted Executioner 30003 | -2/Research | Spotted Striker 30038 | -2/Research | Spotted Striker 30055 | -2/Research | Spotted Striker 30057 | -2/Research | Spotted Striker 30059 | -2/Research | Destroyed Striker 30061 | -2/Research | Spotted Executioner 30088 | -2/Research | Destroyed Striker 30096 | -2/Research | Spotted Executioner 30100 | -2/Research | Lost 4 allies 30148 | -2/Research | Spotted Striker 30178 | -2/Research | Destroyed Striker 30244 | -2/Research | Lost 3 parts (1p1n1u) 30341 | -2/Research | Spotted Striker 30350 | -2/Research | Spotted Striker 30351 | -2/Research | Spotted Striker 30355 | -2/Research | Entered Testing 30380 | -2/Testing | Found Prototype Protection 30380 | -2/Testing | Identified Lgt. Regenerative Plating 30384 | -2/Testing | Found Prototype Protection 30384 | -2/Testing | Identified Med. Regenerative Plating 30393 | -2/Testing | Found Med. Regenerative Plating 30468 | -2/Testing | Found Prototype Device 30468 | -2/Testing | Identified AEGIS Remote Shield 30676 | -2/Testing | Build established: Construct 30691 | -2/Testing | Rewired PY-NH64IDGOOO 30750 | -2/Testing | Found Prototype Device 30753 | -2/Testing | Identified Exp. Actuator Array 31413 | -2/Testing | Scanned by Researcher 31788 | -2/Testing | Identified Subatomic Replicator 32047 | -2/Testing | Spotted Fortress 32101 | -2/Testing | Discovered new exit (range 6) 32101 | -2/Testing | Discovered new exit (range 6) 32139 | -2/Testing | Entered Protoforge 32156 | -2/Protoforge | Spotted B-90 Cyclops 32304 | -2/Protoforge | Build established: Scavenger-Construct 32533 | -2/Protoforge | Superfortress began startup sequence 32537 | -2/Protoforge | Spotted Hotshot 32541 | -2/Protoforge | Spotted Hotshot 32559 | -2/Protoforge | Destroyed Hotshot 32561 | -2/Protoforge | Spotted Hotshot 32562 | -2/Protoforge | Destroyed Hotshot 32566 | -2/Protoforge | Destroyed Hotshot 32571 | -2/Protoforge | Spotted Hotshot 32572 | -2/Protoforge | Destroyed Hotshot 32618 | -2/Protoforge | Spotted Hotshot 32630 | -2/Protoforge | Destroyed Hotshot 32724 | -2/Protoforge | Discovered exit to Access (range 12) 32797 | -2/Protoforge | System corruption reached 10% 33021 | -2/Protoforge | Spotted Hotshot 33021 | -2/Protoforge | Spotted Hotshot 33024 | -2/Protoforge | Spotted Hotshot 33024 | -2/Protoforge | Spotted Hotshot 33025 | -2/Protoforge | Destroyed Hotshot 33026 | -2/Protoforge | Spotted Hotshot 33027 | -2/Protoforge | Destroyed Hotshot 33037 | -2/Protoforge | Destroyed Hotshot 33041 | -2/Protoforge | Destroyed Hotshot 33046 | -2/Protoforge | Destroyed Hotshot 33094 | -2/Protoforge | Destroyed 11 combat bots 33376 | -2/Protoforge | Self-destructed Last Messages --------------- 33346_ Machine disabled. 33352_ P-80 Master destroyed. 33355_ Scrap Engine modifies Hpw. Kinetic Linear Construct/C: Critical -1/Destroy, Matter Cost -2, Max Damage -11, Shot Heat +129 Renamed Rapid Thermal Phase Construct/C. 33355_ System corrupted: Adv. Cryofiber Web rejected. 33355_ Acquired Adv. Cryofiber Web. 33357_ Destroyed Unknown Processor. 33357_ Destroyed Adv. Remote Datajack. 33362_ P-80 Master destroyed. 33367_ Destroyed Gamma Rifle. 33369_ Destroyed Sml. Battery. 33369_ Destroyed Gamma Rifle. 33370_ Exp. Targeting Computer destroyed. 33371_ R XQKHPQFNYC4LV2A/MIX>88ME1&SIVJ& NLMYG 33375_ System corrupted: Rapid Thermal Phase Construct/C jammed. 33376_ Scrap Engine modifies Hovering Antigrav-Biometal Exoskeleton: Max Integrity +383, Time/Move +44, Support +36, +Special Renamed Shield-Antigrav Exoskeleton. 33376_ Exp. Heat Sink destroyed. Map ----- +----------------------------------------------------+ | ?????????????????????????????????????????????????? | | ?????????????????????????????????????????????????? | | ?????????????????????????????????????????????????? | | ?????????????????????????????????????????????????? | | ?????????????????????????????????????????????????? | | ?????????????????????????????????????????????????? | | ?????????????????????????????????????????????????? | | ?????????????????????????????????????????????????? | | ?????????????????????????????????????????????????? | | ?????????????????????????????????????????????????? | | ?????????????????????????????????????????????????? | | ?????????????????????????????????????????????????? | | ?????????????????????????????????????????????????? | | ?????????????????????????????????????????????????? | | ?????????????????????????????????????????????????? | | ????????????????????????????????####?????????????? | | ???????????????????????????????"" ##????????????? | | ??????????????????????#########[[[[|####?????????? | | ??????????????????????# !%*! ?????????? | | ??????????????????????# [== ????????? | | ??????????????????????# [ ????????? | | ??????????????????????# ???????? | | ??????????????????????# p ???????? | | ??????????????????????# p u ???????? | | ??????????????????????# pp#####====#?????????????? | | ??????????????????????# @#??????????????????????? | | ??????????????????????# #??????????????????????? | | ??????????????????????# #??????????????????????? | | ??????????????????????# #??????????????????????? | | ??????????????????????# #??????????????????????? | | ??????????????????????# #??????????????????????? | | ??????????????????????;!![#??????????????????????? | | ??????????????????????;[=[#??????????????????????? | | ##???????????????????##!=%#??????????????????????? | | "#????####??????????##;=u=#!""???????????????????? | | "####################"#p*=+%"""" ????????????????? | | ] %!! !!% ||!=#[ """ ????????????????? | | % !! !%^![![#["""" ????????????????? | | % % ![!=^=!=|# ????????????????? | | ### ####+####### =######?#####????????????????? | | ??# #?? % ????# #???????????????????????????? | | ??# #? """ #??# #???????????????????????????? | | ??# # #??#####???????????????????????????? | | ??# # """ #??????????????????????????????????? | | ??# # #??????????????????????????????????? | | ??# # """ #??????????????????????????????????? | | ### # #??????????????????????????????????? | | # ????#??????????????????????????????????? | | # ???????????????????????????????????????? | | #+##???????????????????????????????????????? | +----------------------------------------------------+ Best States ------------- Heat Dissipation 101 Coolant Potential 120 Energy Generation 95 Energy Capacity 1849 Matter Stores 300 Matter Capacity 300 Sight Range 24 Robot Scan Range 16 Terrain Scan Density 10 Jamming Range 16 Additional Mass Support 9 Base Temperature (-) 200 Armor Coverage 450 Power Shielding 33 Utility Shielding 33 Weapon Cycling 25 Phase Shifting 15 Evasion (%) 61 Targeting Accuracy 12 Core Analysis 8 Recoil Reduction 6 Offensive Hacking 14 Item Schematics ----------------- Hvy. Missile Launcher | -8/Recycling | Hacked Cmb. Gravmag System | -6/Factory | Hacked Prc. Energy Filter | -2/Testing | Archive Adv. Gravity Neutralizer | -2/Testing | Archive Exp. Matter Compressor | -2/Testing | Archive Robot Schematics ------------------ R-10 Processor | -2/Testing | Archive X-77 Beamer | -2/Testing | Archive Fabricated ------------ Cmb. Gravmag System | x2 | -6/Factory Repaired ---------- Lgt. Treads | 26% | -8/Materials Beamcaster | 20% | -8/Storage Imp. Treads | 55% | -8/Storage Centrium Medium Armor Plating | 27% | -4/Factory Alien Tech Used ----------------- High-powered Transdimensional Reconstructor Dimensional Node Initializer Transdimensional Reconstructor Achievements -------------- None Challenges ------------ None Game ------ Seed CargoDamperCyclogen Manual? 0 Play Time 04:37:19 Cumulative 1532.6 hours Start 2025.06.01 @ 11:42:21 End 2025.06.02 @ 18:31:00 Sessions 3 Manual Loads 0 Difficulty Rogue Special Mode None Game No. 1089 Rogue 1049 Adventurer 40 Explorer 0 Win Type - Total 194 Types 83/9/74/2/1/4/16/2/1/2 Lore% 96 Gallery% 97 Achievement% 87 Wizard Run 0 Options --------- Layout 0 ASCII 0 Keyboard 0 Movement Numpad Keybinds 0 Fullscreen 0 Font 20/Terminus Map View 76x50 Zoom Use 0% Tactical HUD 1 Map Filters NONE Filters NONE Steam 1 RUN: d6a6bb74-6110-4234-95dd-87c0bcdeb7da